Workbook

Sheet Inputs
B1: CY | C1: PY | F1: Year | G1: Label
A2: Period | B2: 9 | F2: =B3 -> 2017 | G2: CY
A3: Year | B3: 2017 | C3: =B3-1 -> 2016 | F3: =F2-1 -> 2016 | G3: PY
A4: Quarter | B4: =IF(B2>9,4,IF(B2>6,3,IF(B2>3,2,1))) -> 3 | F4: =F3-1 -> 2015 | G4: PY2
A5: EOP Date | B5: 2017-09-05 | C5: 2016-09-06
A7: Update: | B7: PTD
A8: 2-digit year | B8: =RIGHT(B3,2) -> 17 | C8: =RIGHT(C3,2) -> 16

Sheet SULL2 (hidden)
A1: oSat | E1: Recommend | I1: Pace | M1: Food Quality | R1: InMoment Trends - Sullivan's
A2: Brand | B2: SULL | E2: Brand | F2: SULL | I2: Brand | J2: SULL | M2: Brand | N2: SULL
A4: Average of Overall Sat. | B4: Column Labels | E4: Average of Recommend | F4: Column Labels | I4: Average of Pace of dining | J4: Column Labels | M4: Average of Quality of food | N4: Column Labels
A5: Row Labels | B5: 2015 | C5: 2016 | D5: 2017 | E5: Row Labels | F5: 2015 | G5: 2016 | H5: 2017 | I5: Row Labels | J5: 2015 | K5: 2016 | L5: 2017 | M5: Row Labels | N5: 2015 | O5: 2016 | P5: 2017
A6: 1 | C6: 68.26022928 | D6: 71.07805677 | E6: 1 | G6: 0 | H6: 0 | I6: 1 | K6: 71.25820106 | L6: 74.13045852 | M6: 1 | O6: 73.54532628 | P6: 75.23275109
A7: 2 | C7: 69.0631539 | D7: 71.96672694 | E7: 2 | G7: 0 | H7: 0 | I7: 2 | K7: 70.96755118 | L7: 73.68661844 | M7: 2 | O7: 75.65845337 | P7: 76.40090416
A8: 3 | C8: 76.20303951 | D8: 78.14981906 | E8: 3 | G8: 0 | H8: 0 | I8: 3 | K8: 75.48611955 | L8: 81.05271411 | M8: 3 | O8: 77.90182371 | P8: 80.69975875
A9: 4 | C9: 74.72223161 | D9: 85.80470588 | E9: 4 | G9: 0 | H9: 0 | I9: 4 | K9: 76.58368555 | L9: 85.63915966 | M9: 4 | O9: 77.6953508 | P9: 88.39151261
A10: 5 | C10: 71.71029977 | D10: 74.53464755 | E10: 5 | G10: 0 | H10: 0 | I10: 5 | K10: 74.48570331 | L10: 78.37287933 | M10: 5 | O10: 75.24665642 | P10: 78.72939068
A11: 6 | C11: 76.07385475 | D11: 75.55968254 | E11: 6 | G11: 0 | H11: 69.37873016 | I11: 6 | K11: 77.44055866 | L11: 77.78539683 | M11: 6 | O11: 77.76927374 | P11: 76.82333333
A12: 7 | C12: 75.04586057 | D12: 74.91032787 | E12: 7 | G12: 0 | H12: 69.6757377 | I12: 7 | K12: 77.45566449 | L12: 77.05065574 | M12: 7 | O12: 78.98453159 | P12: 77.5647541
A13: 8 | C13: 77.10047226 | D13: 79.2718894 | E13: 8 | G13: 0 | H13: 74.81536098 | I13: 8 | K13: 80.88713105 | L13: 81.87772657 | M13: 8 | O13: 78.50271547 | P13: 82.18049155
A14: 9 | B14: 73.79318956 | C14: 73.10544662 | D14: 77.21255411 | E14: 9 | F14: 0 | G14: 0 | H14: 74.46406926 | I14: 9 | J14: 77.19375709 | K14: 75.94237473 | L14: 80.3959596 | M14: 9 | N14: 78.09307605 | O14: 77.88300654 | P14: 80.08326118
A15: 10 | B15: 71.72549538 | C15: 74.14993726 | E15: 10 | F15: 0 | G15: 0 | I15: 10 | J15: 76.22734478 | K15: 73.52873275 | M15: 10 | N15: 76.74002642 | O15: 77.78368883
A16: 11 | B16: 72.1348 | C16: 70.2946557 | E16: 11 | F16: 0 | G16: 0 | I16: 11 | J16: 75.47386667 | K16: 73.06577595 | M16: 11 | N16: 75.60493333 | O16: 75.2356629
A17: 12 | B17: 69.65510836 | C17: 72.91354765 | E17: 12 | F17: 0 | G17: 0 | I17: 12 | J17: 73.37275542 | K17: 77.16693456 | M17: 12 | N17: 73.05861713 | O17: 75.66865672
A18: 13 | B18: 68.32589474 | C18: 71.56742671 | E18: 13 | F18: 0 | G18: 0 | I18: 13 | J18: 72.00905263 | K18: 71.87633008 | M18: 13 | N18: 77.48768421 | O18: 75.34885993
A19: Grand Total | B19: 71.12689761 | C19: 73.09308889 | D19: 76.49871224 | E19: Grand Total | F19: 0 | G19: 0 | H19: 32.03709979 | I19: Grand Total | J19: 74.85535532 | K19: 75.08805868 | L19: 78.88795209 | M19: Grand Total | N19: 76.19686743 | O19: 76.70953895 | P19: 79.56735083
S38: Source: InMoment Summary Report

Sheet DFG2 (hidden)
A1: oSat | E1: Recommend | I1: Pace | M1: Food Quality | R1: InMoment Trends - Del Frisco's Grille
A2: Brand | B2: DFG | E2: Brand | F2: DFG | I2: Brand | J2: DFG | M2: Brand | N2: DFG
A4: Average of Overall Sat. | B4: Column Labels | E4: Average of Recommend | F4: Column Labels | I4: Average of Pace of dining | J4: Column Labels | M4: Average of Quality of food | N4: Column Labels
A5: Row Labels | B5: 2015 | C5: 2016 | D5: 2017 | E5: Row Labels | F5: 2015 | G5: 2016 | H5: 2017 | I5: Row Labels | J5: 2015 | K5: 2016 | L5: 2017 | M5: Row Labels | N5: 2015 | O5: 2016 | P5: 2017
A6: 1 | C6: 68.31612542 | D6: 69.96447793 | E6: 1 | G6: 0 | H6: 0 | I6: 1 | K6: 73.90727884 | L6: 72.00527449 | M6: 1 | O6: 71.2343785 | P6: 73.96361679
A7: 2 | C7: 65.11345708 | D7: 69.10829361 | E7: 2 | G7: 0 | H7: 0 | I7: 2 | K7: 71.77648879 | L7: 74.17778837 | M7: 2 | O7: 68.91415313 | P7: 71.59761678
A8: 3 | C8: 74.4869606 | D8: 77.52388451 | E8: 3 | G8: 0 | H8: 0 | I8: 3 | K8: 75.79484053 | L8: 78.56255468 | M8: 3 | O8: 76.25253283 | P8: 78.74523185
A9: 4 | C9: 67.87892116 | D9: 86.68769781 | E9: 4 | G9: 0 | H9: 0 | I9: 4 | K9: 70.88074689 | L9: 87.59974477 | M9: 4 | O9: 71.1206639 | P9: 86.21347626
A10: 5 | C10: 71.18722467 | D10: 80.0676911 | E10: 5 | G10: 0 | H10: 0 | I10: 5 | K10: 73.75092511 | L10: 81.02245863 | M10: 5 | O10: 74.18140969 | P10: 81.48266351
A11: 6 | C11: 73.96923077 | D11: 74.84306096 | E11: 6 | G11: 0 | H11: 67.82736706 | I11: 6 | K11: 75.97988166 | L11: 77.82632944 | M11: 6 | O11: 76.08828402 | P11: 78.07989624
A12: 7 | C12: 72.91131429 | D12: 79.15767524 | E12: 7 | G12: 0 | H12: 70.26708075 | I12: 7 | K12: 75.64662857 | L12: 81.54933452 | M12: 7 | O12: 73.71885714 | P12: 80.92413487
A13: 8 | C13: 74.16789189 | D13: 78.73374165 | E13: 8 | G13: 0 | H13: 73.82939866 | I13: 8 | K13: 74.70043243 | L13: 79.85167038 | M13: 8 | O13: 75.24551351 | P13: 79.06280624
A14: 9 | B14: 66.16882255 | C14: 70.14830339 | D14: 73.49926393 | E14: 9 | F14: 0 | G14: 0 | H14: 66.35320715 | I14: 9 | J14: 70.47595357 | K14: 72.95149701 | L14: 76.4511041 | M14: 9 | N14: 69.65472637 | O14: 74.65658683 | P14: 78.32818086
A15: 10 | B15: 62.76673267 | C15: 70.39315476 | E15: 10 | F15: 0 | G15: 0 | I15: 10 | J15: 65.73980198 | K15: 73.51428571 | M15: 10 | N15: 64.36158416 | O15: 74.41681548
A16: 11 | B16: 61.10555556 | C16: 73.72142857 | E16: 11 | F16: 0 | G16: 0 | I16: 11 | J16: 64.23576389 | K16: 74.12264151 | M16: 11 | N16: 62.83871528 | O16: 75.47897574
A17: 12 | B17: 58.66808824 | C17: 69.79336493 | E17: 12 | F17: 0 | G17: 0 | I17: 12 | J17: 65.45014706 | K17: 72.27464455 | M17: 12 | N17: 63.66823529 | O17: 72.62725118
A18: 13 | B18: 64.04811947 | C18: 68.74459591 | E18: 13 | F18: 0 | G18: 0 | I18: 13 | J18: 68.5744469 | K18: 72.05813048 | M18: 13 | N18: 67.15431416 | O18: 75.27643622
A19: Grand Total | B19: 62.5514637 | C19: 70.83322873 | D19: 76.62064297 | E19: Grand Total | F19: 0 | G19: 0 | H19: 30.91967262 | I19: Grand Total | J19: 66.89522268 | K19: 73.64295554 | L19: 78.78291771 | M19: Grand Total | N19: 65.53551505 | O19: 73.78552755 | P19: 78.71084704
S38: Source: InMoment Summary Report

Sheet Store Rank PTD
A1: Type | B1: DFDE | H1: Min axis | I1: =IF(K1="",VLOOKUP(B1&"_"&A4,'Chart list'!$N:$P,2,FALSE),K1) -> 40
A2: Status | B2: Open | H2: Max axis | I2: =IF(K2="",VLOOKUP(B1&"_"&A4,'Chart list'!$N:$P,3,FALSE),K2) -> Auto
H3: Decimals | I3: =IF(K3="",VLOOKUP(B1&"_"&A4,'Chart list'!$N:$Q,4,FALSE),K3) -> 1
A4: Sum of Overall Sat. | B4: Column Labels
A5: Row Labels | B5: 2014-08 | C5: 2013-08
A6: Orlando, FL | B6: 86.2 | C6: 75
A7: Denver, CO | B7: 85.6 | C7: 73.9
A8: Fort Worth, TX | B8: 79.5 | C8: 77.3
A9: New York City, NY | B9: 73.9 | C9: 70.8
A10: Houston, TX | B10: 72 | C10: 75
A11: Charlotte, NC | B11: 70.8 | C11: 72.2
A12: Philadelphia, PA | B12: 70.6 | C12: 76.3
A13: Boston, MA | B13: 67.8 | C13: 68.8

Sheet Store Rank Count PTD (hidden)
A1: Type | B1: DFG
A2: Status | B2: Open
A4: Sum of # of Surveys | B4: Column Labels
A5: Row Labels

Sheet Store Rank Count QTD YTD (hidden)
A1: Type | B1: DFDE
A2: Status | B2: Open
A4: Sum of # of Surveys | B4: Column Labels
A5: Row Labels | B5: '17 Q2 QTD | C5: '16 Q2 QTD
A6: New York City, NY | B6: 462 | C6: 713
A7: Fort Worth, TX | B7: 408 | C7: 514
A8: Philadelphia, PA | B8: 406 | C8: 461
A9: Denver, CO | B9: 320 | C9: 349
A10: Boston, MA | B10: 279 | C10: 380
A11: Charlotte, NC | B11: 285 | C11: 281
A12: Washington, DC | B12: 179 | C12: 220
A13: Las Vegas, NV | B13: 177 | C13: 212
A14: Houston, TX | B14: 164 | C14: 177
A15: Orlando, FL | B15: 137 | C15: 124
A16: Chicago, IL | B16: 81 | C16: 134
A17: Plano, TX | B17: 183
A18: Dallas, TX | B18: 158

Sheet Chart list
A1: Slide # | B1: Content | C1: Brand | D1: Metric label | E1: Column # | F1: Column Label | G1: Order | H1: Low | I1: High | J1: Chart Sheet | K1: Notes | N1: Brand_Label | O1: Low | P1: High | Q1: Decimals
A2: 1 | B2: oSat | C2: DFDE | D2: ="OSAT - Q"&Inputs!$B$4&" '"&Inputs!$B$8&" vs. Q"&Inputs!$B$4&" '"&Inputs!$C$8 -> OSAT - Q3 '17 vs. Q3 '16 | E2: C | F2: Overall Sat. | G2: Descending | H2: 40 | I2: Auto | J2: Store Rank | N2: =C2&"_"&"Sum of "&F2 -> DFDE_Sum of Overall Sat. | O2: =H2 -> 40 | P2: =I2 -> Auto | Q2: 1 | T2: 45 | U2: 100
A3: =A2+1 -> 2 | B3: % Low | C3: DFDE | D3: ="% of Low Scores - Q"&Inputs!$B$4&" '"&Inputs!$B$8&" vs. Q"&Inputs!$B$4&" '"&Inputs!$C$8 -> % of Low Scores - Q3 '17 vs. Q3 '16 | E3: L | F3: % of Low Scores | G3: Ascending | H3: Auto | I3: Auto | J3: Store Rank | N3: =C3&"_"&"Sum of "&F3 -> DFDE_Sum of % of Low Scores | O3: =H3 -> Auto | P3: =I3 -> Auto | Q3: 1 | T3: 0 | U3: 30
A4: =A3+1 -> 3 | B4: Pace | C4: DFDE | D4: ="Pace of Dining - Q"&Inputs!$B$4&" '"&Inputs!$B$8&" vs. Q"&Inputs!$B$4&" '"&Inputs!$C$8 -> Pace of Dining - Q3 '17 vs. Q3 '16 | E4: G | F4: Pace of dining | G4: Descending | H4: 40 | I4: Auto | J4: Store Rank | N4: DFDE_Sum of Pace of dining | O4: 40 | P4: Auto | Q4: 1 | T4: 40 | U4: 90
A5: =A4+1 -> 4 | B5: Food | C5: DFDE | D5: ="Quality of Food - Q"&Inputs!$B$4&" '"&Inputs!$B$8&" vs. Q"&Inputs!$B$4&" '"&Inputs!$C$8 -> Quality of Food - Q3 '17 vs. Q3 '16 | E5: H | F5: Quality of food | G5: Descending | H5: 40 | I5: Auto | J5: Store Rank | N5: DFDE_Sum of Quality of food | O5: 40 | P5: Auto | Q5: 1 | T5: 40 | U5: 90
A6: =A5+1 -> 5 | B6: Recommend | C6: DFDE | D6: ="Recommend - Q"&Inputs!$B$4&" '"&Inputs!$B$8&" vs. Q"&Inputs!$B$4&" '"&Inputs!$C$8 -> Recommend - Q3 '17 vs. Q3 '16 | E6: D | F6: Recommend (NPS) | G6: Descending | H6: Auto | I6: Auto | J6: Store Rank | N6: DFDE_Sum of Recommend (NPS) | O6: Auto | P6: Auto | Q6: 1 | T6: 0 | U6: 100
A7: =A6+1 -> 6 | B7: oSat | C7: SULL | D7: ="OSAT - Q"&Inputs!$B$4&" '"&Inputs!$B$8&" vs. Q"&Inputs!$B$4&" '"&Inputs!$C$8 -> OSAT - Q3 '17 vs. Q3 '16 | E7: C | F7: Overall Sat. | G7: Descending | H7: 40 | I7: Auto | J7: Store Rank | N7: SULL_Sum of Overall Sat. | O7: 40 | P7: Auto | Q7: 1 | T7: 45 | U7: 100
A8: 7 | B8: % Low | C8: SULL | D8: ="% of Low Scores - Q"&Inputs!$B$4&" '"&Inputs!$B$8&" vs. Q"&Inputs!$B$4&" '"&Inputs!$C$8 -> % of Low Scores - Q3 '17 vs. Q3 '16 | E8: L | F8: % of Low Scores | G8: Ascending | H8: Auto | I8: Auto | J8: Store Rank | N8: SULL_Sum of % of Low Scores | O8: Auto | P8: Auto | Q8: 1 | T8: 0 | U8: 30
A9: 8 | B9: Pace | C9: SULL | D9: ="Pace of Dining - Q"&Inputs!$B$4&" '"&Inputs!$B$8&" vs. Q"&Inputs!$B$4&" '"&Inputs!$C$8 -> Pace of Dining - Q3 '17 vs. Q3 '16 | E9: G | F9: Pace of dining | G9: Descending | H9: 40 | I9: Auto | J9: Store Rank | N9: SULL_Sum of Pace of dining | O9: 40 | P9: Auto | Q9: 1 | T9: 40 | U9: 90
A10: 9 | B10: Food | C10: SULL | D10: ="Quality of Food - Q"&Inputs!$B$4&" '"&Inputs!$B$8&" vs. Q"&Inputs!$B$4&" '"&Inputs!$C$8 -> Quality of Food - Q3 '17 vs. Q3 '16 | E10: H | F10: Quality of food | G10: Descending | H10: 40 | I10: Auto | J10: Store Rank | N10: SULL_Sum of Quality of food | O10: 40 | P10: Auto | Q10: 1 | T10: 40 | U10: 90
A11: 10 | B11: Recommend | C11: SULL | D11: ="Recommend - Q"&Inputs!$B$4&" '"&Inputs!$B$8&" vs. Q"&Inputs!$B$4&" '"&Inputs!$C$8 -> Recommend - Q3 '17 vs. Q3 '16 | E11: D | F11: Recommend (NPS) | G11: Descending | H11: Auto | I11: Auto | J11: Store Rank | N11: SULL_Sum of Recommend (NPS) | O11: Auto | P11: Auto | Q11: 1 | T11: 0 | U11: 100
A12: 11 | B12: oSat | C12: DFG | D12: ="OSAT - Q"&Inputs!$B$4&" '"&Inputs!$B$8&" vs. Q"&Inputs!$B$4&" '"&Inputs!$C$8 -> OSAT - Q3 '17 vs. Q3 '16 | E12: C | F12: Overall Sat. | G12: Descending | H12: 40 | I12: Auto | J12: Store Rank | N12: DFG_Sum of Overall Sat. | O12: 40 | P12: Auto | Q12: 1 | T12: 45 | U12: 100
A13: 12 | B13: % Low | C13: DFG | D13: ="% of Low Scores - Q"&Inputs!$B$4&" '"&Inputs!$B$8&" vs. Q"&Inputs!$B$4&" '"&Inputs!$C$8 -> % of Low Scores - Q3 '17 vs. Q3 '16 | E13: L | F13: % of Low Scores | G13: Ascending | H13: Auto | I13: Auto | J13: Store Rank | N13: DFG_Sum of % of Low Scores | O13: Auto | P13: Auto | Q13: 1 | T13: 0 | U13: 30
A14: 13 | B14: Pace | C14: DFG | D14: ="Pace of Dining - Q"&Inputs!$B$4&" '"&Inputs!$B$8&" vs. Q"&Inputs!$B$4&" '"&Inputs!$C$8 -> Pace of Dining - Q3 '17 vs. Q3 '16 | E14: G | F14: Pace of dining | G14: Descending | H14: 40 | I14: Auto | J14: Store Rank | N14: DFG_Sum of Pace of dining | O14: 40 | P14: Auto | Q14: 1 | T14: 40 | U14: 90
A15: 14 | B15: Food | C15: DFG | D15: ="Quality of Food - Q"&Inputs!$B$4&" '"&Inputs!$B$8&" vs. Q"&Inputs!$B$4&" '"&Inputs!$C$8 -> Quality of Food - Q3 '17 vs. Q3 '16 | E15: H | F15: Quality of food | G15: Descending | H15: 40 | I15: Auto | J15: Store Rank | N15: DFG_Sum of Quality of food | O15: 40 | P15: Auto | Q15: 1 | T15: 40 | U15: 90
A16: 15 | B16: Recommend | C16: DFG | D16: ="Recommend - Q"&Inputs!$B$4&" '"&Inputs!$B$8&" vs. Q"&Inputs!$B$4&" '"&Inputs!$C$8 -> Recommend - Q3 '17 vs. Q3 '16 | E16: D | F16: Recommend (NPS) | G16: Descending | H16: Auto | I16: Auto | J16: Store Rank | N16: DFG_Sum of Recommend (NPS) | O16: Auto | P16: Auto | Q16: 1 | T16: 0 | U16: 100
A17: 16 | B17: Survey rate | C17: DFDE | D17: ="Surveys Per 100 Entrees - Q"&Inputs!$B$4&" '"&Inputs!$B$8&" vs. Q"&Inputs!$B$4&" '"&Inputs!$C$8 -> Surveys Per 100 Entrees - Q3 '17 vs. Q3 '16 | E17: Q | F17: # of Surveys | G17: Descending | H17: Auto | I17: Auto | J17: Store Rank | K17: Separate chart due to dual axis | N17: =C17&"_"&"Sum of "&F17 -> DFDE_Sum of # of Surveys | O17: =H17 -> Auto | P17: Auto | Q17: 0 | T17: Auto | U17: Auto
A18: 17 | B18: Survey rate | C18: SULL | D18: ="Surveys Per 100 Entrees - Q"&Inputs!$B$4&" '"&Inputs!$B$8&" vs. Q"&Inputs!$B$4&" '"&Inputs!$C$8 -> Surveys Per 100 Entrees - Q3 '17 vs. Q3 '16 | E18: Q | F18: # of Surveys | G18: Descending | H18: Auto | I18: Auto | J18: Store Rank | K18: Separate chart due to dual axis | N18: SULL_Sum of # of Surveys | O18: Auto | P18: Auto | Q18: 0 | T18: Auto | U18: Auto
A19: 18 | B19: Survey rate | C19: DFG | D19: ="Surveys Per 100 Entrees - Q"&Inputs!$B$4&" '"&Inputs!$B$8&" vs. Q"&Inputs!$B$4&" '"&Inputs!$C$8 -> Surveys Per 100 Entrees - Q3 '17 vs. Q3 '16 | E19: Q | F19: # of Surveys | G19: Descending | H19: Auto | I19: Auto | J19: Store Rank | K19: Separate chart due to dual axis | N19: DFG_Sum of # of Surveys | O19: Auto | P19: Auto | Q19: 0 | T19: Auto | U19: Auto
A20: 19 | B20: Count | C20: DFDE | D20: ="# of Surveys - Q"&Inputs!$B$4&" '"&Inputs!$B$8&" vs. Q"&Inputs!$B$4&" '"&Inputs!$C$8 -> # of Surveys - Q3 '17 vs. Q3 '16 | E20: O | F20: Surveys Per 100 Entrees | G20: Descending | H20: Auto | I20: Auto | J20: Store Rank | K20: Separate chart due to dual axis | N20: DFDE_Sum of Surveys Per 100 Entrees | O20: Auto | P20: Auto | Q20: 2 | T20: Auto | U20: Auto
A21: 20 | B21: Count | C21: SULL | D21: ="# of Surveys - Q"&Inputs!$B$4&" '"&Inputs!$B$8&" vs. Q"&Inputs!$B$4&" '"&Inputs!$C$8 -> # of Surveys - Q3 '17 vs. Q3 '16 | E21: O | F21: Surveys Per 100 Entrees | G21: Descending | H21: Auto | I21: Auto | J21: Store Rank | K21: Separate chart due to dual axis | N21: SULL_Sum of Surveys Per 100 Entrees | O21: Auto | P21: Auto | Q21: 2 | T21: Auto | U21: Auto
A22: 21 | B22: Count | C22: DFG | D22: ="# of Surveys - Q"&Inputs!$B$4&" '"&Inputs!$B$8&" vs. Q"&Inputs!$B$4&" '"&Inputs!$C$8 -> # of Surveys - Q3 '17 vs. Q3 '16 | E22: O | F22: Surveys Per 100 Entrees | G22: Descending | H22: Auto | I22: Auto | J22: Store Rank | K22: Separate chart due to dual axis | N22: DFG_Sum of Surveys Per 100 Entrees | O22: Auto | P22: Auto | Q22: 2 | T22: Auto | U22: Auto
D25: Surveys Per 100 Entrees

Sheet Slide list (hidden)
A1: Slide # | B1: Slide content | C1: Slide title | D1: Slide title dynamic
A2: 34 | B2: DFDE InMoment Trends (quad chart) | C2: InMoment Trends | D2: No

Sheet Ops Item list (hidden)
A1: Item # | B1: Slide # | C1: Item type | D1: Item content | E1: Text | F1: Dynamic | G1: Paste type | H1: Slide item ID | I1: Height | J1: Width | K1: Left | L1: Top
A2: 1 | B2: 34 | C2: Text box | D2: DFDE Overall Satisfaction | E2: Overall Satisfaction | F2: No | H2: Text Placeholder 1 | I2: 0.42 | J2: 5.93 | K2: 0.5 | L2: 1.19
A3: =A2+1 -> 2 | B3: 34 | C3: Chart | D3: DFDE Overall Satisfaction chart | F3: Yes | G3: ppPastePNG | H3: Content Placeholder 10 | I3: 2.25 | J3: 5.93 | K3: 0.5 | L3: 1.64
A4: 3 | B4: 34 | C4: Text box | D4: DFDE Pace of Dining | E4: Pace of Dining | F4: No | H4: Text Placeholder 2 | I4: 0.42 | J4: 5.93 | K4: 6.87 | L4: 1.19
A5: 4 | B5: 34 | C5: Chart | D5: DFDE Pace of Dining Chart | F5: Yes | G5: ppPastePNG | H5: Content Placeholder 11 | I5: 2.25 | J5: 5.93 | K5: 6.87 | L5: 1.64
A6: 5 | B6: 34 | C6: Text box | D6: DFDE Recommend | E6: Recommend | F6: No | H6: Text Placeholder 4 | I6: 0.42 | J6: 5.93 | K6: 0.51 | L6: 4.19
A7: 6 | B7: 34 | C7: Chart | D7: DFDE Recommend Chart | F7: Yes | G7: ppPastePNG | H7: Content Placeholder 13 | I7: 2.25 | J7: 5.93 | K7: 0.5 | L7: 4.64
A8: 7 | B8: 34 | C8: Text box | D8: DFDE Food Quality | E8: Food Quality | F8: No | H8: Text Placeholder 6 | I8: 0.42 | J8: 5.93 | K8: 6.87 | L8: 4.19
A9: 8 | B9: 34 | C9: Chart | D9: DFDE Food Quality Chart | F9: Yes | G9: ppPastePNG | H9: Content Placeholder 14 | I9: 2.25 | J9: 5.93 | K9: 6.87 | L9: 4.64
A10: =A9+1 -> 9 | B10: 42 | C10: Text box | D10: SULL Overall Satisfaction | E10: Overall Satisfaction | F10: No | H10: Text Placeholder 1 | I10: 0.42 | J10: 5.93 | K10: 0.5 | L10: 1.19
A11: 10 | B11: 42 | C11: Chart | D11: SULL Overall Satisfaction chart | F11: Yes | G11: ppPastePNG | H11: Content Placeholder 12 | I11: 2.25 | J11: 5.93 | K11: 0.5 | L11: 1.64
A12: 11 | B12: 42 | C12: Text box | D12: SULL Pace of Dining | E12: Pace of Dining | F12: No | H12: Text Placeholder 2 | I12: 0.42 | J12: 5.93 | K12: 6.87 | L12: 1.19
A13: 12 | B13: 42 | C13: Chart | D13: SULL Pace of Dining Chart | F13: Yes | G13: ppPastePNG | H13: Content Placeholder 15 | I13: 2.25 | J13: 5.93 | K13: 6.87 | L13: 1.64
A14: 13 | B14: 42 | C14: Text box | D14: SULL Recommend | E14: Recommend | F14: No | H14: Text Placeholder 4 | I14: 0.42 | J14: 5.93 | K14: 0.51 | L14: 4.19
A15: 14 | B15: 42 | C15: Chart | D15: SULL Recommend Chart | F15: Yes | G15: ppPastePNG | H15: Content Placeholder 16 | I15: 2.25 | J15: 5.93 | K15: 0.5 | L15: 4.64
A16: 15 | B16: 42 | C16: Text box | D16: SULL Food Quality | E16: Food Quality | F16: No | H16: Text Placeholder 6 | I16: 0.42 | J16: 5.93 | K16: 6.87 | L16: 4.19
A17: 16 | B17: 42 | C17: Chart | D17: SULL Food Quality Chart | F17: Yes | G17: ppPastePNG | H17: Content Placeholder 17 | I17: 2.25 | J17: 5.93 | K17: 6.87 | L17: 4.64
A18: 17 | B18: 50 | C18: Text box | D18: DFG Overall Satisfaction | E18: Overall Satisfaction | F18: No | H18: Text Placeholder 1 | I18: 0.42 | J18: 5.93 | K18: 0.5 | L18: 1.19
A19: 18 | B19: 50 | C19: Chart | D19: DFG Overall Satisfaction chart | F19: Yes | G19: ppPastePNG | H19: Content Placeholder 12 | I19: 2.25 | J19: 5.93 | K19: 0.5 | L19: 1.64
A20: 19 | B20: 50 | C20: Text box | D20: DFG Pace of Dining | E20: Pace of Dining | F20: No | H20: Text Placeholder 2 | I20: 0.42 | J20: 5.93 | K20: 6.87 | L20: 1.19
A21: 20 | B21: 50 | C21: Chart | D21: DFG Pace of Dining Chart | F21: Yes | G21: ppPastePNG | H21: Content Placeholder 15 | I21: 2.25 | J21: 5.93 | K21: 6.87 | L21: 1.64
A22: 21 | B22: 50 | C22: Text box | D22: DFG Recommend | E22: Recommend | F22: No | H22: Text Placeholder 4 | I22: 0.42 | J22: 5.93 | K22: 0.51 | L22: 4.19
A23: 22 | B23: 50 | C23: Chart | D23: DFG Recommend Chart | F23: Yes | G23: ppPastePNG | H23: Content Placeholder 16 | I23: 2.25 | J23: 5.93 | K23: 0.5 | L23: 4.64
A24: 23 | B24: 50 | C24: Text box | D24: DFG Food Quality | E24: Food Quality | F24: No | H24: Text Placeholder 6 | I24: 0.42 | J24: 5.93 | K24: 6.87 | L24: 4.19
A25: 24 | B25: 50 | C25: Chart | D25: DFG Food Quality Chart | F25: Yes | G25: ppPastePNG | H25: Content Placeholder 17 | I25: 2.25 | J25: 5.93 | K25: 6.87 | L25: 4.64

Sheet Database PTD
A1: Location | B1: Start Date | C1: Overall Sat. | D1: Recommend | E1: Recommend (NPS) | F1: Attentiveness | G1: Hospitality | H1: Pace of dining | I1: Quality of food | J1: Atmosphere | K1: Value | L1: % Yes - Manager Visits | M1: % of Low Scores | N1: # Open Call Backs | O1: Comments | P1: # of Surveys | Q1: Store | R1: Month | S1: Year | T1: Type | U1: Year_Period | V1: Status | W1: IM Label | X1: Traffic | Y1: Surveys Per 100 Entrees | AA1: Traffic formula | AB1: =SUMIFS([2]Database!$L:$L,[2]Database!$H:$H,"Traffic",[2]Database!$B:$B,$Q1,[2]Database!$F:$F,$S1,[2]Database!$D:$D,$R1) -> 
A2: 8501 - Austin, TX - Sullivan's | C2: 50 | D2: 64.3 | E2: 0 | F2: 64.3 | G2: 50 | H2: 64.3 | I2: 71.4 | J2: 64.3 | L2: 92.9 | M2: 28.6 | N2: 0 | O2: 12 | P2: 14 | Q2: =MID(A2,1,4)*1 -> 8501 | R2: 1 | S2: 2012 | T2: =VLOOKUP(Q2,Stores!$A:$B,2,FALSE) -> SULL | U2: =S2&"-"&REPT("0",2-LEN(R2))&R2 -> 2012-01 | V2: =VLOOKUP($Q2,Stores!$A:$D,4,FALSE) -> Open | W2: =VLOOKUP(Q2,Stores!$A:$C,3,FALSE) -> Austin, TX | X2: 6062 | Y2: =P2/(X2/100) -> 0.2309468822
A3: 8502 - Indianapolis, IN - Sullivan's | C3: 66.2 | D3: 70.4 | E3: 0 | F3: 77.5 | G3: 83.1 | H3: 66.2 | I3: 73.2 | J3: 69 | L3: 70.4 | M3: 8.5 | N3: 0 | O3: 51 | P3: 71 | Q3: =MID(A3,1,4)*1 -> 8502 | R3: 1 | S3: 2012 | T3: =VLOOKUP(Q3,Stores!$A:$B,2,FALSE) -> SULL | U3: =S3&"-"&REPT("0",2-LEN(R3))&R3 -> 2012-01 | V3: =VLOOKUP($Q3,Stores!$A:$D,4,FALSE) -> Open | W3: =VLOOKUP(Q3,Stores!$A:$C,3,FALSE) -> Indianapolis, IN | X3: 7492 | Y3: =P3/(X3/100) -> 0.9476775227
A4: 8503 - Denver, CO - Sullivan's | C4: 80.8 | D4: 80.8 | E4: 0 | F4: 88.5 | G4: 88.5 | H4: 76.9 | I4: 84.6 | J4: 80.8 | L4: 69.2 | M4: 11.5 | N4: 0 | O4: 17 | P4: 26 | Q4: 8503 | R4: 1 | S4: 2012 | T4: =VLOOKUP(Q4,Stores!$A:$B,2,FALSE) -> SULL | U4: 2012-01 | V4: =VLOOKUP($Q4,Stores!$A:$D,4,FALSE) -> Closed | W4: =VLOOKUP(Q4,Stores!$A:$C,3,FALSE) -> Denver, CO | X4: 2880 | Y4: 0.9027777778
A5: 8504 - Houston, TX - Sullivan's | C5: 80.8 | D5: 80.8 | E5: 0 | F5: 84.6 | G5: 88.5 | H5: 84.6 | I5: 96.2 | J5: 76.9 | L5: 76.9 | M5: 0 | N5: 0 | O5: 17 | P5: 26 | Q5: 8504 | R5: 1 | S5: 2012 | T5: =VLOOKUP(Q5,Stores!$A:$B,2,FALSE) -> SULL | U5: 2012-01 | V5: =VLOOKUP($Q5,Stores!$A:$D,4,FALSE) -> Closed | W5: =VLOOKUP(Q5,Stores!$A:$C,3,FALSE) -> Houston, TX | X5: 3832 | Y5: 0.6784968685
A6: 8510 - Wilmington, DE - Sullivan's | C6: 58.7 | D6: 76 | E6: 0 | F6: 77.3 | G6: 81.3 | H6: 65.3 | I6: 73.3 | J6: 69.3 | L6: 76 | M6: 6.7 | N6: 0 | O6: 57 | P6: 75 | Q6: 8510 | R6: 1 | S6: 2012 | T6: =VLOOKUP(Q6,Stores!$A:$B,2,FALSE) -> SULL | U6: 2012-01 | V6: =VLOOKUP($Q6,Stores!$A:$D,4,FALSE) -> Open | W6: =VLOOKUP(Q6,Stores!$A:$C,3,FALSE) -> Wilmington, DE | X6: 5555 | Y6: 1.350135014
A7: 8522 - King of Prussia, PA - Sullivan's | C7: 48.1 | D7: 55.8 | E7: 0 | F7: 63.5 | G7: 69.2 | H7: 50 | I7: 46.2 | J7: 42.3 | L7: 71.2 | M7: 9.6 | N7: 0 | O7: 45 | P7: 52 | Q7: 8522 | R7: 1 | S7: 2012 | T7: =VLOOKUP(Q7,Stores!$A:$B,2,FALSE) -> SULL | U7: 2012-01 | V7: =VLOOKUP($Q7,Stores!$A:$D,4,FALSE) -> Open | W7: =VLOOKUP(Q7,Stores!$A:$C,3,FALSE) -> King of Prussia, PA | X7: 6655 | Y7: 0.7813673929
A8: 8525 - Tucson, AZ - Sullivan's | C8: 90.5 | D8: 90.5 | E8: 0 | F8: 100 | G8: 100 | H8: 85.7 | I8: 90.5 | J8: 85.7 | L8: 71.4 | M8: 0 | N8: 0 | O8: 18 | P8: 21 | Q8: 8525 | R8: 1 | S8: 2012 | T8: =VLOOKUP(Q8,Stores!$A:$B,2,FALSE) -> SULL | U8: 2012-01 | V8: =VLOOKUP($Q8,Stores!$A:$D,4,FALSE) -> Open | W8: =VLOOKUP(Q8,Stores!$A:$C,3,FALSE) -> Tucson, AZ | X8: 3814 | Y8: 0.5506030414
A9: 8532 - Omaha, NE - Sullivan's | C9: 69 | D9: 72.4 | E9: 0 | F9: 75.9 | G9: 75.9 | H9: 72.4 | I9: 65.5 | J9: 69 | L9: 75.9 | M9: 13.8 | N9: 2 | O9: 21 | P9: 29 | Q9: 8532 | R9: 1 | S9: 2012 | T9: =VLOOKUP(Q9,Stores!$A:$B,2,FALSE) -> SULL | U9: 2012-01 | V9: =VLOOKUP($Q9,Stores!$A:$D,4,FALSE) -> Open | W9: =VLOOKUP(Q9,Stores!$A:$C,3,FALSE) -> Omaha, NE | X9: 4046 | Y9: 0.7167572912
A10: 8535 - Baltimore, MD - Sullivan's | C10: 64.3 | D10: 71.4 | E10: 0 | F10: 64.3 | G10: 85.7 | H10: 57.1 | I10: 78.6 | J10: 71.4 | L10: 71.4 | M10: 14.3 | N10: 0 | O10: 9 | P10: 14 | Q10: 8535 | R10: 1 | S10: 2012 | T10: =VLOOKUP(Q10,Stores!$A:$B,2,FALSE) -> SULL | U10: 2012-01 | V10: =VLOOKUP($Q10,Stores!$A:$D,4,FALSE) -> Open | W10: =VLOOKUP(Q10,Stores!$A:$C,3,FALSE) -> Baltimore, MD | X10: 4074 | Y10: 0.3436426117
A11: 8536 - Leawood, KS - Sullivan's | C11: 68.4 | D11: 73.7 | E11: 0 | F11: 74.4 | G11: 81.2 | H11: 67.7 | I11: 70.7 | J11: 72.2 | L11: 87.2 | M11: 9 | N11: 0 | O11: 100 | P11: 133 | Q11: 8536 | R11: 1 | S11: 2012 | T11: =VLOOKUP(Q11,Stores!$A:$B,2,FALSE) -> SULL | U11: 2012-01 | V11: =VLOOKUP($Q11,Stores!$A:$D,4,FALSE) -> Open | W11: =VLOOKUP(Q11,Stores!$A:$C,3,FALSE) -> Leawood, KS | X11: 7335 | Y11: 1.813224267
A12: 8541 - Chicago, IL - Sullivan's | C12: 46.2 | D12: 61.5 | E12: 0 | F12: 61.5 | G12: 61.5 | H12: 61.5 | I12: 46.2 | J12: 53.8 | L12: 61.5 | M12: 30.8 | N12: 1 | O12: 12 | P12: 13 | Q12: 8541 | R12: 1 | S12: 2012 | T12: =VLOOKUP(Q12,Stores!$A:$B,2,FALSE) -> SULL | U12: 2012-01 | V12: =VLOOKUP($Q12,Stores!$A:$D,4,FALSE) -> Open | W12: =VLOOKUP(Q12,Stores!$A:$C,3,FALSE) -> Chicago, IL | X12: 2845 | Y12: 0.4569420035
A13: 8542 - Naperville, IL - Sullivan's | C13: 64.8 | D13: 71.8 | E13: 0 | F13: 78.9 | G13: 83.1 | H13: 81.7 | I13: 74.6 | J13: 71.8 | L13: 73.2 | M13: 1.4 | N13: 0 | O13: 55 | P13: 71 | Q13: 8542 | R13: 1 | S13: 2012 | T13: =VLOOKUP(Q13,Stores!$A:$B,2,FALSE) -> SULL | U13: 2012-01 | V13: =VLOOKUP($Q13,Stores!$A:$D,4,FALSE) -> Open | W13: =VLOOKUP(Q13,Stores!$A:$C,3,FALSE) -> Naperville, IL | X13: 6252 | Y13: 1.135636596
A14: 8543 - Lincolnshire, IL - Sullivan's | C14: 73.3 | D14: 86.7 | E14: 0 | F14: 80 | G14: 86.7 | H14: 93.3 | I14: 80 | J14: 73.3 | L14: 93.3 | M14: 0 | N14: 0 | O14: 12 | P14: 15 | Q14: 8543 | R14: 1 | S14: 2012 | T14: =VLOOKUP(Q14,Stores!$A:$B,2,FALSE) -> SULL | U14: 2012-01 | V14: =VLOOKUP($Q14,Stores!$A:$D,4,FALSE) -> Open | W14: =VLOOKUP(Q14,Stores!$A:$C,3,FALSE) -> Lincolnshire, IL | X14: 3817 | Y14: 0.3929787791
A15: 8551 - Baton Rouge, LA - Sullivan's | C15: 81.5 | D15: 87 | E15: 0 | F15: 85.9 | G15: 94.6 | H15: 87 | I15: 84.8 | J15: 83.7 | L15: 91.3 | M15: 2.2 | N15: 0 | O15: 71 | P15: 92 | Q15: 8551 | R15: 1 | S15: 2012 | T15: =VLOOKUP(Q15,Stores!$A:$B,2,FALSE) -> SULL | U15: 2012-01 | V15: =VLOOKUP($Q15,Stores!$A:$D,4,FALSE) -> Open | W15: =VLOOKUP(Q15,Stores!$A:$C,3,FALSE) -> Baton Rouge, LA | X15: 5800 | Y15: 1.586206897
A16: 8561 - Raleigh, NC - Sullivan's | C16: 74.4 | D16: 82.1 | E16: 0 | F16: 87.2 | G16: 87.2 | H16: 74.4 | I16: 82.1 | J16: 66.7 | L16: 71.8 | M16: 2.6 | N16: 0 | O16: 28 | P16: 39 | Q16: 8561 | R16: 1 | S16: 2012 | T16: =VLOOKUP(Q16,Stores!$A:$B,2,FALSE) -> SULL | U16: 2012-01 | V16: =VLOOKUP($Q16,Stores!$A:$D,4,FALSE) -> Open | W16: =VLOOKUP(Q16,Stores!$A:$C,3,FALSE) -> Raleigh, NC | X16: 6148 | Y16: 0.634352635
A17: 8562 - Charlotte, NC - Sullivan's | C17: 67.1 | D17: 79.3 | E17: 0 | F17: 73.2 | G17: 75.6 | H17: 67.1 | I17: 74.4 | J17: 59.8 | L17: 56.1 | M17: 7.3 | N17: 0 | O17: 54 | P17: 82 | Q17: 8562 | R17: 1 | S17: 2012 | T17: =VLOOKUP(Q17,Stores!$A:$B,2,FALSE) -> SULL | U17: 2012-01 | V17: =VLOOKUP($Q17,Stores!$A:$D,4,FALSE) -> Open | W17: =VLOOKUP(Q17,Stores!$A:$C,3,FALSE) -> Charlotte, NC | X17: 6774 | Y17: 1.210510776
A18: 8570 - Palm Desert, CA - Sullivan's | C18: 80.8 | D18: 80.8 | E18: 0 | F18: 84.6 | G18: 92.3 | H18: 76.9 | I18: 80.8 | J18: 73.1 | L18: 84.6 | M18: 11.5 | N18: 0 | O18: 24 | P18: 26 | Q18: 8570 | R18: 1 | S18: 2012 | T18: =VLOOKUP(Q18,Stores!$A:$B,2,FALSE) -> SULL | U18: 2012-01 | V18: =VLOOKUP($Q18,Stores!$A:$D,4,FALSE) -> Open | W18: =VLOOKUP(Q18,Stores!$A:$C,3,FALSE) -> Palm Desert, CA | X18: 5849 | Y18: 0.4445204308
A19: 8591 - Anchorage, AK - Sullivan's | C19: 78.6 | D19: 85.7 | E19: 0 | F19: 75 | G19: 96.4 | H19: 71.4 | I19: 78.6 | J19: 78.6 | L19: 67.9 | M19: 7.1 | N19: 0 | O19: 25 | P19: 28 | Q19: 8591 | R19: 1 | S19: 2012 | T19: =VLOOKUP(Q19,Stores!$A:$B,2,FALSE) -> SULL | U19: 2012-01 | V19: =VLOOKUP($Q19,Stores!$A:$D,4,FALSE) -> Open | W19: =VLOOKUP(Q19,Stores!$A:$C,3,FALSE) -> Anchorage, AK | X19: 5941 | Y19: 0.4713011278
A20: 8592 - Seattle, WA - Sullivan's | C20: 84.6 | D20: 87.2 | E20: 0 | F20: 92.3 | G20: 97.4 | H20: 87.2 | I20: 94.9 | J20: 74.4 | L20: 71.8 | M20: 0 | N20: 0 | O20: 28 | P20: 39 | Q20: 8592 | R20: 1 | S20: 2012 | T20: =VLOOKUP(Q20,Stores!$A:$B,2,FALSE) -> SULL | U20: 2012-01 | V20: =VLOOKUP($Q20,Stores!$A:$D,4,FALSE) -> Closed | W20: =VLOOKUP(Q20,Stores!$A:$C,3,FALSE) -> Seattle, WA | X20: 4818 | Y20: 0.8094645081
A21: 8601 - Dallas, TX - Del Frisco's | C21: 77.8 | D21: 79.4 | E21: 0 | F21: 82.5 | G21: 87.3 | H21: 76.2 | I21: 82.5 | J21: 77.8 | L21: 79.4 | M21: 6.3 | N21: 1 | O21: 47 | P21: 63 | Q21: 8601 | R21: 1 | S21: 2012 | T21: =VLOOKUP(Q21,Stores!$A:$B,2,FALSE) -> DFDE | U21: 2012-01 | V21: =VLOOKUP($Q21,Stores!$A:$D,4,FALSE) -> Closed | W21: =VLOOKUP(Q21,Stores!$A:$C,3,FALSE) -> Dallas, TX | X21: 6112 | Y21: 1.030759162
A22: 8602 - Fort Worth, TX - Del Frisco's | C22: 80.3 | D22: 84.7 | E22: 0 | F22: 84.7 | G22: 92 | H22: 76.6 | I22: 86.1 | J22: 82.5 | L22: 68.6 | M22: 8 | N22: 0 | O22: 97 | P22: 137 | Q22: 8602 | R22: 1 | S22: 2012 | T22: =VLOOKUP(Q22,Stores!$A:$B,2,FALSE) -> DFDE | U22: 2012-01 | V22: =VLOOKUP($Q22,Stores!$A:$D,4,FALSE) -> Open | W22: =VLOOKUP(Q22,Stores!$A:$C,3,FALSE) -> Fort Worth, TX | X22: 7919 | Y22: 1.730016416
A23: 8603 - Denver, CO - Del Frisco's | C23: 67.9 | D23: 77.4 | E23: 0 | F23: 72.6 | G23: 84.5 | H23: 77.4 | I23: 76.2 | J23: 67.9 | L23: 52.4 | M23: 7.1 | N23: 0 | O23: 55 | P23: 84 | Q23: 8603 | R23: 1 | S23: 2012 | T23: =VLOOKUP(Q23,Stores!$A:$B,2,FALSE) -> DFDE | U23: 2012-01 | V23: =VLOOKUP($Q23,Stores!$A:$D,4,FALSE) -> Open | W23: =VLOOKUP(Q23,Stores!$A:$C,3,FALSE) -> Denver, CO | X23: 10432 | Y23: 0.8052147239
A24: 8604 - Charlotte, NC - Del Frisco's | C24: 70.1 | D24: 76.5 | E24: 0 | F24: 78.9 | G24: 81.9 | H24: 72.1 | I24: 78.9 | J24: 81.9 | L24: 54.9 | M24: 9.8 | N24: 0 | O24: 157 | P24: 204 | Q24: 8604 | R24: 1 | S24: 2012 | T24: =VLOOKUP(Q24,Stores!$A:$B,2,FALSE) -> DFDE | U24: 2012-01 | V24: =VLOOKUP($Q24,Stores!$A:$D,4,FALSE) -> Open | W24: =VLOOKUP(Q24,Stores!$A:$C,3,FALSE) -> Charlotte, NC | X24: 10112 | Y24: 2.017405063
A25: 8605 - Houston, TX - Del Frisco's | C25: 77.9 | D25: 80.2 | E25: 0 | F25: 82.6 | G25: 87.2 | H25: 77.9 | I25: 84.9 | J25: 84.9 | L25: 73.3 | M25: 8.1 | N25: 1 | O25: 59 | P25: 86 | Q25: 8605 | R25: 1 | S25: 2012 | T25: =VLOOKUP(Q25,Stores!$A:$B,2,FALSE) -> DFDE | U25: 2012-01 | V25: =VLOOKUP($Q25,Stores!$A:$D,4,FALSE) -> Open | W25: =VLOOKUP(Q25,Stores!$A:$C,3,FALSE) -> Houston, TX | X25: 8909 | Y25: 0.9653159726
A26: 8620 - New York City, NY - Del Frisco's | C26: 75.7 | D26: 83.6 | E26: 0 | F26: 84.7 | G26: 87.6 | H26: 80.2 | I26: 83.1 | J26: 80.2 | L26: 65.5 | M26: 5.6 | N26: 3 | O26: 135 | P26: 177 | Q26: 8620 | R26: 1 | S26: 2012 | T26: =VLOOKUP(Q26,Stores!$A:$B,2,FALSE) -> DFDE | U26: 2012-01 | V26: =VLOOKUP($Q26,Stores!$A:$D,4,FALSE) -> Open | W26: =VLOOKUP(Q26,Stores!$A:$C,3,FALSE) -> New York City, NY | X26: 20389 | Y26: 0.8681151601
A27: 8635 - Boston, MA - Del Frisco's | C27: 76.6 | D27: 81.9 | E27: 0 | F27: 85.1 | G27: 89.4 | H27: 75.5 | I27: 86.2 | J27: 75.5 | L27: 75.5 | M27: 5.3 | N27: 0 | O27: 69 | P27: 94 | Q27: 8635 | R27: 1 | S27: 2012 | T27: =VLOOKUP(Q27,Stores!$A:$B,2,FALSE) -> DFDE | U27: 2012-01 | V27: =VLOOKUP($Q27,Stores!$A:$D,4,FALSE) -> Open | W27: =VLOOKUP(Q27,Stores!$A:$C,3,FALSE) -> Boston, MA | X27: 9259 | Y27: 1.015228426
A28: 8640 - Las Vegas, NV - Del Frisco's | C28: 73.1 | D28: 79.1 | E28: 0 | F28: 74.6 | G28: 79.1 | H28: 70.1 | I28: 77.6 | J28: 64.2 | L28: 59.7 | M28: 9 | N28: 0 | O28: 44 | P28: 67 | Q28: 8640 | R28: 1 | S28: 2012 | T28: =VLOOKUP(Q28,Stores!$A:$B,2,FALSE) -> DFDE | U28: 2012-01 | V28: =VLOOKUP($Q28,Stores!$A:$D,4,FALSE) -> Open | W28: =VLOOKUP(Q28,Stores!$A:$C,3,FALSE) -> Las Vegas, NV | X28: 8265 | Y28: 0.8106473079
A29: 8650 - Chicago, IL - Del Frisco's | C29: 81.8 | D29: 84.8 | E29: 0 | F29: 84.8 | G29: 87.9 | H29: 81.8 | I29: 90.9 | J29: 81.8 | L29: 42.4 | M29: 9.1 | N29: 1 | O29: 27 | P29: 33 | Q29: 8650 | R29: 1 | S29: 2012 | T29: =VLOOKUP(Q29,Stores!$A:$B,2,FALSE) -> DFDE | U29: 2012-01 | V29: =VLOOKUP($Q29,Stores!$A:$D,4,FALSE) -> Open | W29: =VLOOKUP(Q29,Stores!$A:$C,3,FALSE) -> Chicago, IL | X29: 5356 | Y29: 0.6161314414
A30: 8655 - Washington, DC - Del Frisco's | C30: 47.9 | D30: 60.6 | E30: 0 | F30: 59.6 | G30: 67 | H30: 48.9 | I30: 59.6 | J30: 63.8 | L30: 59.6 | M30: 24.5 | N30: 1 | O30: 68 | P30: 94 | Q30: 8655 | R30: 1 | S30: 2012 | T30: =VLOOKUP(Q30,Stores!$A:$B,2,FALSE) -> DFDE | U30: 2012-01 | V30: =VLOOKUP($Q30,Stores!$A:$D,4,FALSE) -> Open | W30: =VLOOKUP(Q30,Stores!$A:$C,3,FALSE) -> Washington, DC | X30: 9202 | Y30: 1.021517062
A31: 8680 - Philadelphia, PA - Del Frisco's | C31: 69.3 | D31: 77.7 | E31: 0 | F31: 78.3 | G31: 84.3 | H31: 67.5 | I31: 78.3 | J31: 69.3 | L31: 60.2 | M31: 11.4 | N31: 0 | O31: 128 | P31: 166 | Q31: 8680 | R31: 1 | S31: 2012 | T31: =VLOOKUP(Q31,Stores!$A:$B,2,FALSE) -> DFDE | U31: 2012-01 | V31: =VLOOKUP($Q31,Stores!$A:$D,4,FALSE) -> Open | W31: =VLOOKUP(Q31,Stores!$A:$C,3,FALSE) -> Philadelphia, PA | X31: 15498 | Y31: 1.071105949
A32: 8701 - New York City, NY - Grille | C32: 52.3 | D32: 75 | E32: 0 | F32: 65.9 | G32: 68.2 | H32: 61.4 | I32: 68.2 | J32: 50 | L32: 56.8 | M32: 13.6 | N32: 0 | O32: 34 | P32: 44 | Q32: 8701 | R32: 1 | S32: 2012 | T32: =VLOOKUP(Q32,Stores!$A:$B,2,FALSE) -> DFG | U32: 2012-01 | V32: =VLOOKUP($Q32,Stores!$A:$D,4,FALSE) -> Open | W32: =VLOOKUP(Q32,Stores!$A:$C,3,FALSE) -> New York City, NY | X32: 10393 | Y32: 0.4233618782
A33: 8702 - Dallas, TX - Grille | C33: 58.3 | D33: 87.5 | E33: 0 | F33: 79.2 | G33: 95.8 | H33: 83.3 | I33: 79.2 | J33: 79.2 | L33: 66.7 | M33: 8.3 | N33: 0 | O33: 16 | P33: 24 | Q33: 8702 | R33: 1 | S33: 2012 | T33: =VLOOKUP(Q33,Stores!$A:$B,2,FALSE) -> DFG | U33: 2012-01 | V33: =VLOOKUP($Q33,Stores!$A:$D,4,FALSE) -> Open | W33: =VLOOKUP(Q33,Stores!$A:$C,3,FALSE) -> Dallas, TX | X33: 9666 | Y33: 0.2482929857
A34: 8703 - Washington, DC - Grille | C34: 46.2 | D34: 38.5 | E34: 0 | F34: 61.5 | G34: 61.5 | H34: 46.2 | I34: 38.5 | J34: 46.2 | L34: 46.2 | M34: 30.8 | N34: 1 | O34: 8 | P34: 13 | Q34: 8703 | R34: 1 | S34: 2012 | T34: =VLOOKUP(Q34,Stores!$A:$B,2,FALSE) -> DFG | U34: 2012-01 | V34: =VLOOKUP($Q34,Stores!$A:$D,4,FALSE) -> Open | W34: =VLOOKUP(Q34,Stores!$A:$C,3,FALSE) -> Washington, DC | X34: 4938 | Y34: 0.2632644795
A35: 8704 - Phoenix, AZ - Grille | C35: 66.7 | D35: 77.8 | E35: 0 | F35: 83.3 | G35: 83.3 | H35: 77.8 | I35: 77.8 | J35: 72.2 | L35: 77.8 | M35: 11.1 | N35: 0 | O35: 12 | P35: 18 | Q35: 8704 | R35: 1 | S35: 2012 | T35: =VLOOKUP(Q35,Stores!$A:$B,2,FALSE) -> DFG | U35: 2012-01 | V35: =VLOOKUP($Q35,Stores!$A:$D,4,FALSE) -> Closed | W35: =VLOOKUP(Q35,Stores!$A:$C,3,FALSE) -> Phoenix, AZ | X35: 3515 | Y35: 0.5120910384
A36: 8705 - Palm Beach, FL - Grille | C36: 77.3 | D36: 84.1 | E36: 0 | F36: 84.1 | G36: 86.4 | H36: 68.2 | I36: 75 | J36: 75 | L36: 93.2 | M36: 4.5 | N36: 0 | O36: 33 | P36: 44 | Q36: 8705 | R36: 1 | S36: 2012 | T36: =VLOOKUP(Q36,Stores!$A:$B,2,FALSE) -> DFG | U36: 2012-01 | V36: =VLOOKUP($Q36,Stores!$A:$D,4,FALSE) -> Closed | W36: =VLOOKUP(Q36,Stores!$A:$C,3,FALSE) -> Palm Beach, FL | X36: 3462 | Y36: 1.270941652
A37: 8706 - Atlanta, GA - Grille | C37: 50 | D37: 68.2 | E37: 0 | F37: 63.6 | G37: 77.3 | H37: 63.6 | I37: 77.3 | J37: 81.8 | L37: 63.6 | M37: 18.2 | N37: 1 | O37: 11 | P37: 22 | Q37: 8706 | R37: 1 | S37: 2012 | T37: =VLOOKUP(Q37,Stores!$A:$B,2,FALSE) -> DFG | U37: 2012-01 | V37: =VLOOKUP($Q37,Stores!$A:$D,4,FALSE) -> Open | W37: =VLOOKUP(Q37,Stores!$A:$C,3,FALSE) -> Atlanta, GA | X37: 7687 | Y37: 0.2861974763
A38: 8707 - River Oaks, TX - Grille | C38: 70.4 | D38: 77.8 | E38: 0 | F38: 81.5 | G38: 92.6 | H38: 74.1 | I38: 70.4 | J38: 77.8 | L38: 59.3 | M38: 0 | N38: 0 | O38: 17 | P38: 27 | Q38: 8707 | R38: 1 | S38: 2012 | T38: =VLOOKUP(Q38,Stores!$A:$B,2,FALSE) -> DFG | U38: 2012-01 | V38: =VLOOKUP($Q38,Stores!$A:$D,4,FALSE) -> Open | W38: =VLOOKUP(Q38,Stores!$A:$C,3,FALSE) -> Houston, TX | X38: 8181 | Y38: 0.3300330033
A39: 8708 - Chestnut Hill, MA - Grille | C39: 43.9 | D39: 61 | E39: 0 | F39: 53.7 | G39: 61 | H39: 56.1 | I39: 56.1 | J39: 46.3 | L39: 63.4 | M39: 24.4 | N39: 0 | O39: 34 | P39: 41 | Q39: 8708 | R39: 1 | S39: 2012 | T39: =VLOOKUP(Q39,Stores!$A:$B,2,FALSE) -> DFG | U39: 2012-01 | V39: =VLOOKUP($Q39,Stores!$A:$D,4,FALSE) -> Open | W39: =VLOOKUP(Q39,Stores!$A:$C,3,FALSE) -> Chestnut Hill, MA | X39: 6299 | Y39: 0.6508969678
A40: 8709 - Santa Monica, CA - Grille | C40: 57.1 | D40: 57.1 | E40: 0 | F40: 71.4 | G40: 85.7 | H40: 85.7 | I40: 42.9 | J40: 71.4 | L40: 57.1 | M40: 0 | N40: 0 | O40: 3 | P40: 7 | Q40: 8709 | R40: 1 | S40: 2012 | T40: =VLOOKUP(Q40,Stores!$A:$B,2,FALSE) -> DFG | U40: 2012-01 | V40: =VLOOKUP($Q40,Stores!$A:$D,4,FALSE) -> Open | W40: =VLOOKUP(Q40,Stores!$A:$C,3,FALSE) -> Santa Monica, CA | X40: 10756 | Y40: 0.06507995537
A41: 8710 - Fort Worth, TX - Grille | C41: 62.7 | D41: 76.5 | E41: 0 | F41: 68.6 | G41: 74.5 | H41: 64.7 | I41: 62.7 | J41: 68.6 | L41: 72.5 | M41: 3.9 | N41: 0 | O41: 35 | P41: 51 | Q41: 8710 | R41: 1 | S41: 2012 | T41: =VLOOKUP(Q41,Stores!$A:$B,2,FALSE) -> DFG | U41: 2012-01 | V41: =VLOOKUP($Q41,Stores!$A:$D,4,FALSE) -> Open | W41: =VLOOKUP(Q41,Stores!$A:$C,3,FALSE) -> Fort Worth, TX | X41: 11149 | Y41: 0.4574401292
A42: 8712 - Southlake, TX - Grille | C42: 76.6 | D42: 87.2 | E42: 0 | F42: 86.2 | G42: 91.5 | H42: 79.8 | I42: 80.9 | J42: 81.9 | L42: 96.8 | M42: 5.3 | N42: 0 | O42: 68 | P42: 94 | Q42: 8712 | R42: 1 | S42: 2012 | T42: =VLOOKUP(Q42,Stores!$A:$B,2,FALSE) -> DFG | U42: 2012-01 | V42: =VLOOKUP($Q42,Stores!$A:$D,4,FALSE) -> Open | W42: =VLOOKUP(Q42,Stores!$A:$C,3,FALSE) -> Southlake, TX | X42: 12423 | Y42: 0.756661032
A43: 8713 - Burlington, MA - Grille | B43: 41794 | C43: 53.1 | D43: 59.4 | E43: 0 | F43: 68.8 | G43: 71.9 | H43: 65.6 | I43: 62.5 | J43: 56.3 | L43: 34.4 | M43: 18.8 | N43: 1 | O43: 26 | P43: 32 | Q43: 8713 | R43: 1 | S43: 2012 | T43: =VLOOKUP(Q43,Stores!$A:$B,2,FALSE) -> DFG | U43: 2012-01 | V43: =VLOOKUP($Q43,Stores!$A:$D,4,FALSE) -> Open | W43: =VLOOKUP(Q43,Stores!$A:$C,3,FALSE) -> Burlington, MA | X43: 8655 | Y43: 0.3697284806
A44: 8714 - N Bethesda, MD - Grille | B44: 41908 | C44: 53.3 | D44: 60 | E44: 0 | F44: 60 | G44: 60 | H44: 53.3 | I44: 46.7 | J44: 60 | L44: 60 | M44: 20 | N44: 1 | O44: 12 | P44: 15 | Q44: 8714 | R44: 1 | S44: 2012 | T44: =VLOOKUP(Q44,Stores!$A:$B,2,FALSE) -> DFG | U44: 2012-01 | V44: =VLOOKUP($Q44,Stores!$A:$D,4,FALSE) -> Open | W44: =VLOOKUP(Q44,Stores!$A:$C,3,FALSE) -> N. Bethesda, MD | X44: 6598 | Y44: 0.2273416187
A45: 8715 - Irvine, CA - Grille | C45: 68.8 | D45: 75 | E45: 0 | F45: 81.3 | G45: 93.8 | H45: 62.5 | I45: 75 | J45: 68.8 | L45: 62.5 | M45: 12.5 | N45: 0 | O45: 12 | P45: 16 | Q45: 8715 | R45: 1 | S45: 2012 | T45: =VLOOKUP(Q45,Stores!$A:$B,2,FALSE) -> DFG | U45: 2012-01 | V45: =VLOOKUP($Q45,Stores!$A:$D,4,FALSE) -> Open | W45: =VLOOKUP(Q45,Stores!$A:$C,3,FALSE) -> Irvine, CA | X45: 7273 | Y45: 0.2199917503
A46: 8716 - Tampa, FL - Grille | C46: 62.5 | D46: 70.8 | E46: 0 | F46: 68.8 | G46: 81.3 | H46: 60.4 | I46: 66.7 | J46: 62.5 | L46: 39.6 | M46: 10.4 | N46: 0 | O46: 35 | P46: 48 | Q46: 8716 | R46: 1 | S46: 2012 | T46: =VLOOKUP(Q46,Stores!$A:$B,2,FALSE) -> DFG | U46: 2012-01 | V46: =VLOOKUP($Q46,Stores!$A:$D,4,FALSE) -> Open | W46: =VLOOKUP(Q46,Stores!$A:$C,3,FALSE) -> Tampa, FL | X46: 9062 | Y46: 0.5296843964
A47: 8717 - Pasadena, CA - Grille | B47: 41992 | C47: 50 | D47: 69.4 | E47: 0 | F47: 74.2 | G47: 80.6 | H47: 69.4 | I47: 66.1 | J47: 74.2 | L47: 83.9 | M47: 16.1 | N47: 0 | O47: 48 | P47: 62 | Q47: 8717 | R47: 1 | S47: 2012 | T47: =VLOOKUP(Q47,Stores!$A:$B,2,FALSE) -> DFG | U47: 2012-01 | V47: =VLOOKUP($Q47,Stores!$A:$D,4,FALSE) -> Open | W47: =VLOOKUP(Q47,Stores!$A:$C,3,FALSE) -> Pasadena, CA | X47: 5833 | Y47: 1.062917881
A48: 8501 - Austin, TX - Sullivan's | C48: 73.5 | D48: 79.4 | E48: 0 | F48: 79.4 | G48: 88.2 | H48: 79.4 | I48: 79.4 | J48: 76.5 | L48: 94.1 | M48: 8.8 | N48: 0 | O48: 29 | P48: 34 | Q48: 8501 | R48: 2 | S48: 2012 | T48: =VLOOKUP(Q48,Stores!$A:$B,2,FALSE) -> SULL | U48: 2012-02 | V48: =VLOOKUP($Q48,Stores!$A:$D,4,FALSE) -> Open | W48: =VLOOKUP(Q48,Stores!$A:$C,3,FALSE) -> Austin, TX | X48: 6711 | Y48: 0.5066309045
A49: 8502 - Indianapolis, IN - Sullivan's | C49: 61 | D49: 66.1 | E49: 0 | F49: 76.3 | G49: 79.7 | H49: 76.3 | I49: 72.9 | J49: 67.8 | L49: 78 | M49: 8.5 | N49: 0 | O49: 37 | P49: 59 | Q49: 8502 | R49: 2 | S49: 2012 | T49: =VLOOKUP(Q49,Stores!$A:$B,2,FALSE) -> SULL | U49: 2012-02 | V49: =VLOOKUP($Q49,Stores!$A:$D,4,FALSE) -> Open | W49: =VLOOKUP(Q49,Stores!$A:$C,3,FALSE) -> Indianapolis, IN | X49: 8291 | Y49: 0.7116150042
A50: 8503 - Denver, CO - Sullivan's | C50: 86.4 | D50: 86.4 | E50: 0 | F50: 81.8 | G50: 81.8 | H50: 86.4 | I50: 86.4 | J50: 77.3 | L50: 81.8 | M50: 9.1 | N50: 0 | O50: 17 | P50: 22 | Q50: 8503 | R50: 2 | S50: 2012 | T50: =VLOOKUP(Q50,Stores!$A:$B,2,FALSE) -> SULL | U50: 2012-02 | V50: =VLOOKUP($Q50,Stores!$A:$D,4,FALSE) -> Closed | W50: =VLOOKUP(Q50,Stores!$A:$C,3,FALSE) -> Denver, CO | X50: 2902 | Y50: 0.7580978635
A51: 8504 - Houston, TX - Sullivan's | C51: 78.9 | D51: 76.3 | E51: 0 | F51: 81.6 | G51: 84.2 | H51: 81.6 | I51: 81.6 | J51: 76.3 | L51: 60.5 | M51: 5.3 | N51: 0 | O51: 26 | P51: 38 | Q51: 8504 | R51: 2 | S51: 2012 | T51: =VLOOKUP(Q51,Stores!$A:$B,2,FALSE) -> SULL | U51: 2012-02 | V51: =VLOOKUP($Q51,Stores!$A:$D,4,FALSE) -> Closed | W51: =VLOOKUP(Q51,Stores!$A:$C,3,FALSE) -> Houston, TX | X51: 4832 | Y51: 0.7864238411
A52: 8510 - Wilmington, DE - Sullivan's | C52: 66.7 | D52: 75 | E52: 0 | F52: 83.3 | G52: 85 | H52: 73.3 | I52: 71.7 | J52: 71.7 | L52: 75 | M52: 8.3 | N52: 0 | O52: 45 | P52: 60 | Q52: 8510 | R52: 2 | S52: 2012 | T52: =VLOOKUP(Q52,Stores!$A:$B,2,FALSE) -> SULL | U52: 2012-02 | V52: =VLOOKUP($Q52,Stores!$A:$D,4,FALSE) -> Open | W52: =VLOOKUP(Q52,Stores!$A:$C,3,FALSE) -> Wilmington, DE | X52: 5696 | Y52: 1.053370787
A53: 8522 - King of Prussia, PA - Sullivan's | C53: 66.7 | D53: 76.2 | E53: 0 | F53: 85.7 | G53: 85.7 | H53: 69 | I53: 73.8 | J53: 66.7 | L53: 81 | M53: 4.8 | N53: 0 | O53: 34 | P53: 42 | Q53: 8522 | R53: 2 | S53: 2012 | T53: =VLOOKUP(Q53,Stores!$A:$B,2,FALSE) -> SULL | U53: 2012-02 | V53: =VLOOKUP($Q53,Stores!$A:$D,4,FALSE) -> Open | W53: =VLOOKUP(Q53,Stores!$A:$C,3,FALSE) -> King of Prussia, PA | X53: 7326 | Y53: 0.5733005733
A54: 8525 - Tucson, AZ - Sullivan's | C54: 85.4 | D54: 90.2 | E54: 0 | F54: 95.1 | G54: 95.1 | H54: 85.4 | I54: 92.7 | J54: 85.4 | L54: 70.7 | M54: 7.3 | N54: 1 | O54: 37 | P54: 41 | Q54: 8525 | R54: 2 | S54: 2012 | T54: =VLOOKUP(Q54,Stores!$A:$B,2,FALSE) -> SULL | U54: 2012-02 | V54: =VLOOKUP($Q54,Stores!$A:$D,4,FALSE) -> Open | W54: =VLOOKUP(Q54,Stores!$A:$C,3,FALSE) -> Tucson, AZ | X54: 5040 | Y54: 0.8134920635
A55: 8532 - Omaha, NE - Sullivan's | C55: 59.3 | D55: 70.4 | E55: 0 | F55: 70.4 | G55: 77.8 | H55: 63 | I55: 55.6 | J55: 77.8 | L55: 81.5 | M55: 11.1 | N55: 0 | O55: 18 | P55: 27 | Q55: 8532 | R55: 2 | S55: 2012 | T55: =VLOOKUP(Q55,Stores!$A:$B,2,FALSE) -> SULL | U55: 2012-02 | V55: =VLOOKUP($Q55,Stores!$A:$D,4,FALSE) -> Open | W55: =VLOOKUP(Q55,Stores!$A:$C,3,FALSE) -> Omaha, NE | X55: 4818 | Y55: 0.5603985056
A56: 8535 - Baltimore, MD - Sullivan's | C56: 62.1 | D56: 82.8 | E56: 0 | F56: 62.1 | G56: 75.9 | H56: 69 | I56: 75.9 | J56: 69 | L56: 75.9 | M56: 10.3 | N56: 0 | O56: 21 | P56: 29 | Q56: 8535 | R56: 2 | S56: 2012 | T56: =VLOOKUP(Q56,Stores!$A:$B,2,FALSE) -> SULL | U56: 2012-02 | V56: =VLOOKUP($Q56,Stores!$A:$D,4,FALSE) -> Open | W56: =VLOOKUP(Q56,Stores!$A:$C,3,FALSE) -> Baltimore, MD | X56: 5133 | Y56: 0.5649717514
A57: 8536 - Leawood, KS - Sullivan's | C57: 65 | D57: 70 | E57: 0 | F57: 75 | G57: 87.5 | H57: 72.5 | I57: 72.5 | J57: 77.5 | L57: 82.5 | M57: 7.5 | N57: 0 | O57: 31 | P57: 40 | Q57: 8536 | R57: 2 | S57: 2012 | T57: =VLOOKUP(Q57,Stores!$A:$B,2,FALSE) -> SULL | U57: 2012-02 | V57: =VLOOKUP($Q57,Stores!$A:$D,4,FALSE) -> Open | W57: =VLOOKUP(Q57,Stores!$A:$C,3,FALSE) -> Leawood, KS | X57: 5527 | Y57: 0.7237199204
A58: 8541 - Chicago, IL - Sullivan's | C58: 69.6 | D58: 69.6 | E58: 0 | F58: 73.9 | G58: 82.6 | H58: 60.9 | I58: 65.2 | J58: 78.3 | L58: 73.9 | M58: 13 | N58: 0 | O58: 18 | P58: 23 | Q58: 8541 | R58: 2 | S58: 2012 | T58: =VLOOKUP(Q58,Stores!$A:$B,2,FALSE) -> SULL | U58: 2012-02 | V58: =VLOOKUP($Q58,Stores!$A:$D,4,FALSE) -> Open | W58: =VLOOKUP(Q58,Stores!$A:$C,3,FALSE) -> Chicago, IL | X58: 4208 | Y58: 0.5465779468
A59: 8542 - Naperville, IL - Sullivan's | C59: 67.2 | D59: 79.3 | E59: 0 | F59: 82.8 | G59: 89.7 | H59: 74.1 | I59: 79.3 | J59: 72.4 | L59: 74.1 | M59: 5.2 | N59: 0 | O59: 41 | P59: 58 | Q59: 8542 | R59: 2 | S59: 2012 | T59: =VLOOKUP(Q59,Stores!$A:$B,2,FALSE) -> SULL | U59: 2012-02 | V59: =VLOOKUP($Q59,Stores!$A:$D,4,FALSE) -> Open | W59: =VLOOKUP(Q59,Stores!$A:$C,3,FALSE) -> Naperville, IL | X59: 6579 | Y59: 0.8815929473
A60: 8543 - Lincolnshire, IL - Sullivan's | C60: 60 | D60: 73.3 | E60: 0 | F60: 73.3 | G60: 93.3 | H60: 86.7 | I60: 66.7 | J60: 60 | L60: 80 | M60: 6.7 | N60: 0 | O60: 13 | P60: 15 | Q60: 8543 | R60: 2 | S60: 2012 | T60: =VLOOKUP(Q60,Stores!$A:$B,2,FALSE) -> SULL | U60: 2012-02 | V60: =VLOOKUP($Q60,Stores!$A:$D,4,FALSE) -> Open | W60: =VLOOKUP(Q60,Stores!$A:$C,3,FALSE) -> Lincolnshire, IL | X60: 4002 | Y60: 0.3748125937
A61: 8551 - Baton Rouge, LA - Sullivan's | C61: 86.5 | D61: 89.2 | E61: 0 | F61: 90.5 | G61: 93.2 | H61: 85.1 | I61: 86.5 | J61: 90.5 | L61: 93.2 | M61: 2.7 | N61: 1 | O61: 57 | P61: 74 | Q61: 8551 | R61: 2 | S61: 2012 | T61: =VLOOKUP(Q61,Stores!$A:$B,2,FALSE) -> SULL | U61: 2012-02 | V61: =VLOOKUP($Q61,Stores!$A:$D,4,FALSE) -> Open | W61: =VLOOKUP(Q61,Stores!$A:$C,3,FALSE) -> Baton Rouge, LA | X61: 5473 | Y61: 1.352092088
A62: 8561 - Raleigh, NC - Sullivan's | C62: 70 | D62: 70 | E62: 0 | F62: 73.3 | G62: 83.3 | H62: 73.3 | I62: 75 | J62: 70 | L62: 46.7 | M62: 15 | N62: 1 | O62: 42 | P62: 60 | Q62: 8561 | R62: 2 | S62: 2012 | T62: =VLOOKUP(Q62,Stores!$A:$B,2,FALSE) -> SULL | U62: 2012-02 | V62: =VLOOKUP($Q62,Stores!$A:$D,4,FALSE) -> Open | W62: =VLOOKUP(Q62,Stores!$A:$C,3,FALSE) -> Raleigh, NC | X62: 7453 | Y62: 0.8050449483
A63: 8562 - Charlotte, NC - Sullivan's | C63: 56 | D63: 64 | E63: 0 | F63: 72 | G63: 76 | H63: 64 | I63: 72 | J63: 72 | L63: 56 | M63: 12 | N63: 0 | O63: 21 | P63: 25 | Q63: 8562 | R63: 2 | S63: 2012 | T63: =VLOOKUP(Q63,Stores!$A:$B,2,FALSE) -> SULL | U63: 2012-02 | V63: =VLOOKUP($Q63,Stores!$A:$D,4,FALSE) -> Open | W63: =VLOOKUP(Q63,Stores!$A:$C,3,FALSE) -> Charlotte, NC | X63: 5314 | Y63: 0.4704554008
A64: 8570 - Palm Desert, CA - Sullivan's | C64: 73.9 | D64: 91.3 | E64: 0 | F64: 82.6 | G64: 87 | H64: 78.3 | I64: 69.6 | J64: 82.6 | L64: 100 | M64: 4.3 | N64: 0 | O64: 20 | P64: 23 | Q64: 8570 | R64: 2 | S64: 2012 | T64: =VLOOKUP(Q64,Stores!$A:$B,2,FALSE) -> SULL | U64: 2012-02 | V64: =VLOOKUP($Q64,Stores!$A:$D,4,FALSE) -> Open | W64: =VLOOKUP(Q64,Stores!$A:$C,3,FALSE) -> Palm Desert, CA | X64: 6539 | Y64: 0.3517357394
A65: 8591 - Anchorage, AK - Sullivan's | C65: 86.2 | D65: 89.7 | E65: 0 | F65: 89.7 | G65: 89.7 | H65: 86.2 | I65: 82.8 | J65: 65.5 | L65: 89.7 | M65: 10.3 | N65: 0 | O65: 25 | P65: 29 | Q65: 8591 | R65: 2 | S65: 2012 | T65: =VLOOKUP(Q65,Stores!$A:$B,2,FALSE) -> SULL | U65: 2012-02 | V65: =VLOOKUP($Q65,Stores!$A:$D,4,FALSE) -> Open | W65: =VLOOKUP(Q65,Stores!$A:$C,3,FALSE) -> Anchorage, AK | X65: 5994 | Y65: 0.4838171505
A66: 8592 - Seattle, WA - Sullivan's | C66: 89.4 | D66: 85.1 | E66: 0 | F66: 91.5 | G66: 97.9 | H66: 87.2 | I66: 85.1 | J66: 89.4 | L66: 68.1 | M66: 2.1 | N66: 0 | O66: 35 | P66: 47 | Q66: 8592 | R66: 2 | S66: 2012 | T66: =VLOOKUP(Q66,Stores!$A:$B,2,FALSE) -> SULL | U66: 2012-02 | V66: =VLOOKUP($Q66,Stores!$A:$D,4,FALSE) -> Closed | W66: =VLOOKUP(Q66,Stores!$A:$C,3,FALSE) -> Seattle, WA | X66: 5973 | Y66: 0.7868742675
A67: 8601 - Dallas, TX - Del Frisco's | C67: 75 | D67: 85.3 | E67: 0 | F67: 77.9 | G67: 89.7 | H67: 77.9 | I67: 76.5 | J67: 76.5 | L67: 79.4 | M67: 8.8 | N67: 2 | O67: 52 | P67: 68 | Q67: =MID(A67,1,4)*1 -> 8601 | R67: 2 | S67: 2012 | T67: =VLOOKUP(Q67,Stores!$A:$B,2,FALSE) -> DFDE | U67: =S67&"-"&REPT("0",2-LEN(R67))&R67 -> 2012-02 | V67: =VLOOKUP($Q67,Stores!$A:$D,4,FALSE) -> Closed | W67: =VLOOKUP(Q67,Stores!$A:$C,3,FALSE) -> Dallas, TX | X67: 6356 | Y67: =P67/(X67/100) -> 1.069855255
A68: 8602 - Fort Worth, TX - Del Frisco's | C68: 77.1 | D68: 82.4 | E68: 0 | F68: 85.5 | G68: 91.6 | H68: 80.2 | I68: 80.2 | J68: 86.3 | L68: 65.6 | M68: 6.9 | N68: 0 | O68: 92 | P68: 131 | Q68: 8602 | R68: 2 | S68: 2012 | T68: =VLOOKUP(Q68,Stores!$A:$B,2,FALSE) -> DFDE | U68: 2012-02 | V68: =VLOOKUP($Q68,Stores!$A:$D,4,FALSE) -> Open | W68: =VLOOKUP(Q68,Stores!$A:$C,3,FALSE) -> Fort Worth, TX | X68: 8630 | Y68: 1.517960603
A69: 8603 - Denver, CO - Del Frisco's | C69: 69.7 | D69: 77.5 | E69: 0 | F69: 75.3 | G69: 83.1 | H69: 69.7 | I69: 77.5 | J69: 70.8 | L69: 38.2 | M69: 10.1 | N69: 0 | O69: 53 | P69: 89 | Q69: 8603 | R69: 2 | S69: 2012 | T69: =VLOOKUP(Q69,Stores!$A:$B,2,FALSE) -> DFDE | U69: 2012-02 | V69: =VLOOKUP($Q69,Stores!$A:$D,4,FALSE) -> Open | W69: =VLOOKUP(Q69,Stores!$A:$C,3,FALSE) -> Denver, CO | X69: 12116 | Y69: 0.7345658633
A70: 8604 - Charlotte, NC - Del Frisco's | C70: 66.7 | D70: 72.7 | E70: 0 | F70: 72.7 | G70: 81.8 | H70: 68.2 | I70: 74.2 | J70: 80.3 | L70: 53 | M70: 4.5 | N70: 0 | O70: 43 | P70: 66 | Q70: 8604 | R70: 2 | S70: 2012 | T70: =VLOOKUP(Q70,Stores!$A:$B,2,FALSE) -> DFDE | U70: 2012-02 | V70: =VLOOKUP($Q70,Stores!$A:$D,4,FALSE) -> Open | W70: =VLOOKUP(Q70,Stores!$A:$C,3,FALSE) -> Charlotte, NC | X70: 6370 | Y70: 1.03610675
A71: 8605 - Houston, TX - Del Frisco's | C71: 68.8 | D71: 77.5 | E71: 0 | F71: 80 | G71: 81.3 | H71: 73.8 | I71: 78.8 | J71: 78.8 | L71: 52.5 | M71: 6.3 | N71: 3 | O71: 58 | P71: 80 | Q71: 8605 | R71: 2 | S71: 2012 | T71: =VLOOKUP(Q71,Stores!$A:$B,2,FALSE) -> DFDE | U71: 2012-02 | V71: =VLOOKUP($Q71,Stores!$A:$D,4,FALSE) -> Open | W71: =VLOOKUP(Q71,Stores!$A:$C,3,FALSE) -> Houston, TX | X71: 10370 | Y71: 0.7714561234
A72: 8620 - New York City, NY - Del Frisco's | C72: 74.8 | D72: 81.8 | E72: 0 | F72: 84.9 | G72: 87.4 | H72: 74.8 | I72: 80.5 | J72: 78 | L72: 62.3 | M72: 5.7 | N72: 1 | O72: 111 | P72: 159 | Q72: 8620 | R72: 2 | S72: 2012 | T72: =VLOOKUP(Q72,Stores!$A:$B,2,FALSE) -> DFDE | U72: 2012-02 | V72: =VLOOKUP($Q72,Stores!$A:$D,4,FALSE) -> Open | W72: =VLOOKUP(Q72,Stores!$A:$C,3,FALSE) -> New York City, NY | X72: 21185 | Y72: 0.7505310361
A73: 8635 - Boston, MA - Del Frisco's | C73: 78.8 | D73: 83.3 | E73: 0 | F73: 80.3 | G73: 87.9 | H73: 75.8 | I73: 78.8 | J73: 74.2 | L73: 78.8 | M73: 3 | N73: 0 | O73: 47 | P73: 66 | Q73: 8635 | R73: 2 | S73: 2012 | T73: =VLOOKUP(Q73,Stores!$A:$B,2,FALSE) -> DFDE | U73: 2012-02 | V73: =VLOOKUP($Q73,Stores!$A:$D,4,FALSE) -> Open | W73: =VLOOKUP(Q73,Stores!$A:$C,3,FALSE) -> Boston, MA | X73: 8543 | Y73: 0.7725623317
A74: 8640 - Las Vegas, NV - Del Frisco's | C74: 70.8 | D74: 83.3 | E74: 0 | F74: 84.7 | G74: 87.5 | H74: 77.8 | I74: 75 | J74: 75 | L74: 59.7 | M74: 11.1 | N74: 0 | O74: 56 | P74: 72 | Q74: 8640 | R74: 2 | S74: 2012 | T74: =VLOOKUP(Q74,Stores!$A:$B,2,FALSE) -> DFDE | U74: 2012-02 | V74: =VLOOKUP($Q74,Stores!$A:$D,4,FALSE) -> Open | W74: =VLOOKUP(Q74,Stores!$A:$C,3,FALSE) -> Las Vegas, NV | X74: 7349 | Y74: 0.9797251327
A75: 8650 - Chicago, IL - Del Frisco's | C75: 70.2 | D75: 70.2 | E75: 0 | F75: 72.3 | G75: 76.6 | H75: 63.8 | I75: 76.6 | J75: 80.9 | L75: 46.8 | M75: 14.9 | N75: 0 | O75: 32 | P75: 47 | Q75: 8650 | R75: 2 | S75: 2012 | T75: =VLOOKUP(Q75,Stores!$A:$B,2,FALSE) -> DFDE | U75: 2012-02 | V75: =VLOOKUP($Q75,Stores!$A:$D,4,FALSE) -> Open | W75: =VLOOKUP(Q75,Stores!$A:$C,3,FALSE) -> Chicago, IL | X75: 7907 | Y75: 0.5944100164
A76: 8655 - Washington, DC - Del Frisco's | C76: 52.8 | D76: 67.9 | E76: 0 | F76: 66 | G76: 84.9 | H76: 62.3 | I76: 75.5 | J76: 69.8 | L76: 62.3 | M76: 9.4 | N76: 0 | O76: 39 | P76: 53 | Q76: 8655 | R76: 2 | S76: 2012 | T76: =VLOOKUP(Q76,Stores!$A:$B,2,FALSE) -> DFDE | U76: 2012-02 | V76: =VLOOKUP($Q76,Stores!$A:$D,4,FALSE) -> Open | W76: =VLOOKUP(Q76,Stores!$A:$C,3,FALSE) -> Washington, DC | X76: 8649 | Y76: 0.6127876055
A77: 8680 - Philadelphia, PA - Del Frisco's | C77: 65.7 | D77: 77.6 | E77: 0 | F77: 80.6 | G77: 78.4 | H77: 70.9 | I77: 76.1 | J77: 72.4 | L77: 54.5 | M77: 8.2 | N77: 0 | O77: 91 | P77: 134 | Q77: 8680 | R77: 2 | S77: 2012 | T77: =VLOOKUP(Q77,Stores!$A:$B,2,FALSE) -> DFDE | U77: 2012-02 | V77: =VLOOKUP($Q77,Stores!$A:$D,4,FALSE) -> Open | W77: =VLOOKUP(Q77,Stores!$A:$C,3,FALSE) -> Philadelphia, PA | X77: 15157 | Y77: 0.8840799631
A78: 8701 - New York City, NY - Grille | C78: 64.4 | D78: 71.1 | E78: 0 | F78: 71.1 | G78: 75.6 | H78: 66.7 | I78: 66.7 | J78: 57.8 | L78: 64.4 | M78: 8.9 | N78: 0 | O78: 28 | P78: 45 | Q78: 8701 | R78: 2 | S78: 2012 | T78: =VLOOKUP(Q78,Stores!$A:$B,2,FALSE) -> DFG | U78: 2012-02 | V78: =VLOOKUP($Q78,Stores!$A:$D,4,FALSE) -> Open | W78: =VLOOKUP(Q78,Stores!$A:$C,3,FALSE) -> New York City, NY | X78: 10219 | Y78: 0.4403561992
A79: 8702 - Dallas, TX - Grille | C79: 66.7 | D79: 53.3 | E79: 0 | F79: 73.3 | G79: 86.7 | H79: 80 | I79: 86.7 | J79: 80 | L79: 40 | M79: 6.7 | N79: 0 | O79: 9 | P79: 15 | Q79: 8702 | R79: 2 | S79: 2012 | T79: =VLOOKUP(Q79,Stores!$A:$B,2,FALSE) -> DFG | U79: 2012-02 | V79: =VLOOKUP($Q79,Stores!$A:$D,4,FALSE) -> Open | W79: =VLOOKUP(Q79,Stores!$A:$C,3,FALSE) -> Dallas, TX | X79: 9104 | Y79: 0.1647627417
A80: 8703 - Washington, DC - Grille | C80: 57.7 | D80: 61.5 | E80: 0 | F80: 69.2 | G80: 73.1 | H80: 61.5 | I80: 61.5 | J80: 65.4 | L80: 53.8 | M80: 23.1 | N80: 1 | O80: 21 | P80: 26 | Q80: 8703 | R80: 2 | S80: 2012 | T80: =VLOOKUP(Q80,Stores!$A:$B,2,FALSE) -> DFG | U80: 2012-02 | V80: =VLOOKUP($Q80,Stores!$A:$D,4,FALSE) -> Open | W80: =VLOOKUP(Q80,Stores!$A:$C,3,FALSE) -> Washington, DC | X80: 5379 | Y80: 0.4833612196
A81: 8704 - Phoenix, AZ - Grille | C81: 71.4 | D81: 71.4 | E81: 0 | F81: 78.6 | G81: 78.6 | H81: 64.3 | I81: 71.4 | J81: 71.4 | L81: 57.1 | M81: 14.3 | N81: 0 | O81: 9 | P81: 14 | Q81: 8704 | R81: 2 | S81: 2012 | T81: =VLOOKUP(Q81,Stores!$A:$B,2,FALSE) -> DFG | U81: 2012-02 | V81: =VLOOKUP($Q81,Stores!$A:$D,4,FALSE) -> Closed | W81: =VLOOKUP(Q81,Stores!$A:$C,3,FALSE) -> Phoenix, AZ | X81: 4411 | Y81: 0.3173883473
A82: 8705 - Palm Beach, FL - Grille | C82: 84.4 | D82: 86.7 | E82: 0 | F82: 84.4 | G82: 93.3 | H82: 77.8 | I82: 75.6 | J82: 82.2 | L82: 86.7 | M82: 4.4 | N82: 0 | O82: 34 | P82: 45 | Q82: 8705 | R82: 2 | S82: 2012 | T82: =VLOOKUP(Q82,Stores!$A:$B,2,FALSE) -> DFG | U82: 2012-02 | V82: =VLOOKUP($Q82,Stores!$A:$D,4,FALSE) -> Closed | W82: =VLOOKUP(Q82,Stores!$A:$C,3,FALSE) -> Palm Beach, FL | X82: 3750 | Y82: 1.2
A83: 8706 - Atlanta, GA - Grille | C83: 65 | D83: 75 | E83: 0 | F83: 70 | G83: 80 | H83: 65 | I83: 75 | J83: 70 | L83: 70 | M83: 5 | N83: 0 | O83: 12 | P83: 20 | Q83: 8706 | R83: 2 | S83: 2012 | T83: =VLOOKUP(Q83,Stores!$A:$B,2,FALSE) -> DFG | U83: 2012-02 | V83: =VLOOKUP($Q83,Stores!$A:$D,4,FALSE) -> Open | W83: =VLOOKUP(Q83,Stores!$A:$C,3,FALSE) -> Atlanta, GA | X83: 7874 | Y83: 0.254000508
A84: 8707 - River Oaks, TX - Grille | C84: 79 | D84: 82.3 | E84: 0 | F84: 88.7 | G84: 95.2 | H84: 79 | I84: 72.6 | J84: 77.4 | L84: 66.1 | M84: 4.8 | N84: 0 | O84: 44 | P84: 62 | Q84: 8707 | R84: 2 | S84: 2012 | T84: =VLOOKUP(Q84,Stores!$A:$B,2,FALSE) -> DFG | U84: 2012-02 | V84: =VLOOKUP($Q84,Stores!$A:$D,4,FALSE) -> Open | W84: =VLOOKUP(Q84,Stores!$A:$C,3,FALSE) -> Houston, TX | X84: 8747 | Y84: 0.7088144507
A85: 8708 - Chestnut Hill, MA - Grille | C85: 77.4 | D85: 77.4 | E85: 0 | F85: 71 | G85: 83.9 | H85: 64.5 | I85: 77.4 | J85: 67.7 | L85: 64.5 | M85: 12.9 | N85: 0 | O85: 24 | P85: 31 | Q85: 8708 | R85: 2 | S85: 2012 | T85: =VLOOKUP(Q85,Stores!$A:$B,2,FALSE) -> DFG | U85: 2012-02 | V85: =VLOOKUP($Q85,Stores!$A:$D,4,FALSE) -> Open | W85: =VLOOKUP(Q85,Stores!$A:$C,3,FALSE) -> Chestnut Hill, MA | X85: 6028 | Y85: 0.5142667551
A86: 8709 - Santa Monica, CA - Grille | C86: 66.7 | D86: 100 | E86: 0 | F86: 83.3 | G86: 66.7 | H86: 83.3 | I86: 100 | J86: 83.3 | L86: 50 | M86: 0 | N86: 0 | O86: 6 | P86: 6 | Q86: 8709 | R86: 2 | S86: 2012 | T86: =VLOOKUP(Q86,Stores!$A:$B,2,FALSE) -> DFG | U86: 2012-02 | V86: =VLOOKUP($Q86,Stores!$A:$D,4,FALSE) -> Open | W86: =VLOOKUP(Q86,Stores!$A:$C,3,FALSE) -> Santa Monica, CA | X86: 11450 | Y86: 0.05240174672
A87: 8710 - Fort Worth, TX - Grille | C87: 70.7 | D87: 85.4 | E87: 0 | F87: 75.6 | G87: 82.9 | H87: 70.7 | I87: 80.5 | J87: 85.4 | L87: 56.1 | M87: 4.9 | N87: 0 | O87: 26 | P87: 41 | Q87: 8710 | R87: 2 | S87: 2012 | T87: =VLOOKUP(Q87,Stores!$A:$B,2,FALSE) -> DFG | U87: 2012-02 | V87: =VLOOKUP($Q87,Stores!$A:$D,4,FALSE) -> Open | W87: =VLOOKUP(Q87,Stores!$A:$C,3,FALSE) -> Fort Worth, TX | X87: 11279 | Y87: 0.3635074031
A88: 8712 - Southlake, TX - Grille | C88: 63 | D88: 69 | E88: 0 | F88: 74 | G88: 77 | H88: 68 | I88: 73 | J88: 65 | L88: 90 | M88: 13 | N88: 1 | O88: 82 | P88: 100 | Q88: 8712 | R88: 2 | S88: 2012 | T88: =VLOOKUP(Q88,Stores!$A:$B,2,FALSE) -> DFG | U88: 2012-02 | V88: =VLOOKUP($Q88,Stores!$A:$D,4,FALSE) -> Open | W88: =VLOOKUP(Q88,Stores!$A:$C,3,FALSE) -> Southlake, TX | X88: 12304 | Y88: 0.8127438231
A89: 8713 - Burlington, MA - Grille | B89: 41794 | C89: 41.7 | D89: 58.3 | E89: 0 | F89: 83.3 | G89: 87.5 | H89: 54.2 | I89: 58.3 | J89: 29.2 | L89: 45.8 | M89: 12.5 | N89: 1 | O89: 18 | P89: 24 | Q89: 8713 | R89: 2 | S89: 2012 | T89: =VLOOKUP(Q89,Stores!$A:$B,2,FALSE) -> DFG | U89: 2012-02 | V89: =VLOOKUP($Q89,Stores!$A:$D,4,FALSE) -> Open | W89: =VLOOKUP(Q89,Stores!$A:$C,3,FALSE) -> Burlington, MA | X89: 7728 | Y89: 0.3105590062
A90: 8714 - N Bethesda, MD - Grille | B90: 41908 | C90: 54.5 | D90: 54.5 | E90: 0 | F90: 50 | G90: 63.6 | H90: 50 | I90: 36.4 | J90: 40.9 | L90: 59.1 | M90: 13.6 | N90: 0 | O90: 16 | P90: 22 | Q90: 8714 | R90: 2 | S90: 2012 | T90: =VLOOKUP(Q90,Stores!$A:$B,2,FALSE) -> DFG | U90: 2012-02 | V90: =VLOOKUP($Q90,Stores!$A:$D,4,FALSE) -> Open | W90: =VLOOKUP(Q90,Stores!$A:$C,3,FALSE) -> N. Bethesda, MD | X90: 6296 | Y90: 0.3494282084
A91: 8715 - Irvine, CA - Grille | C91: 83.9 | D91: 87.1 | E91: 0 | F91: 83.9 | G91: 90.3 | H91: 83.9 | I91: 93.5 | J91: 90.3 | L91: 64.5 | M91: 0 | N91: 0 | O91: 19 | P91: 31 | Q91: 8715 | R91: 2 | S91: 2012 | T91: =VLOOKUP(Q91,Stores!$A:$B,2,FALSE) -> DFG | U91: 2012-02 | V91: =VLOOKUP($Q91,Stores!$A:$D,4,FALSE) -> Open | W91: =VLOOKUP(Q91,Stores!$A:$C,3,FALSE) -> Irvine, CA | X91: 7021 | Y91: 0.4415325452
A92: 8716 - Tampa, FL - Grille | C92: 75.8 | D92: 78.8 | E92: 0 | F92: 72.7 | G92: 78.8 | H92: 63.6 | I92: 81.8 | J92: 90.9 | L92: 51.5 | M92: 12.1 | N92: 0 | O92: 24 | P92: 33 | Q92: 8716 | R92: 2 | S92: 2012 | T92: =VLOOKUP(Q92,Stores!$A:$B,2,FALSE) -> DFG | U92: 2012-02 | V92: =VLOOKUP($Q92,Stores!$A:$D,4,FALSE) -> Open | W92: =VLOOKUP(Q92,Stores!$A:$C,3,FALSE) -> Tampa, FL | X92: 9785 | Y92: 0.3372508942
A93: 8717 - Pasadena, CA - Grille | B93: 41992 | C93: 65.7 | D93: 71.4 | E93: 0 | F93: 74.3 | G93: 80 | H93: 62.9 | I93: 54.3 | J93: 71.4 | L93: 68.6 | M93: 8.6 | N93: 0 | O93: 26 | P93: 35 | Q93: 8717 | R93: 2 | S93: 2012 | T93: =VLOOKUP(Q93,Stores!$A:$B,2,FALSE) -> DFG | U93: 2012-02 | V93: =VLOOKUP($Q93,Stores!$A:$D,4,FALSE) -> Open | W93: =VLOOKUP(Q93,Stores!$A:$C,3,FALSE) -> Pasadena, CA | X93: 6891 | Y93: 0.5079088666
A94: 8501 - Austin, TX - Sullivan's | C94: 85.7 | D94: 88.1 | E94: 0 | F94: 95.2 | G94: 95.2 | H94: 88.1 | I94: 90.5 | J94: 90.5 | L94: 81 | M94: 4.8 | N94: 0 | O94: 36 | P94: 42 | Q94: 8501 | R94: 3 | S94: 2012 | T94: =VLOOKUP(Q94,Stores!$A:$B,2,FALSE) -> SULL | U94: 2012-03 | V94: =VLOOKUP($Q94,Stores!$A:$D,4,FALSE) -> Open | W94: =VLOOKUP(Q94,Stores!$A:$C,3,FALSE) -> Austin, TX | X94: 6811 | Y94: 0.6166495375
A95: 8502 - Indianapolis, IN - Sullivan's | C95: 55.7 | D95: 59.5 | E95: 0 | F95: 70.9 | G95: 77.2 | H95: 62 | I95: 59.5 | J95: 57 | L95: 73.4 | M95: 10.1 | N95: 0 | O95: 52 | P95: 79 | Q95: 8502 | R95: 3 | S95: 2012 | T95: =VLOOKUP(Q95,Stores!$A:$B,2,FALSE) -> SULL | U95: 2012-03 | V95: =VLOOKUP($Q95,Stores!$A:$D,4,FALSE) -> Open | W95: =VLOOKUP(Q95,Stores!$A:$C,3,FALSE) -> Indianapolis, IN | X95: 8586 | Y95: 0.9201024924
A96: 8503 - Denver, CO - Sullivan's | C96: 66 | D96: 68.1 | E96: 0 | F96: 70.2 | G96: 76.6 | H96: 70.2 | I96: 70.2 | J96: 66 | L96: 85.1 | M96: 14.9 | N96: 0 | O96: 33 | P96: 47 | Q96: 8503 | R96: 3 | S96: 2012 | T96: =VLOOKUP(Q96,Stores!$A:$B,2,FALSE) -> SULL | U96: 2012-03 | V96: =VLOOKUP($Q96,Stores!$A:$D,4,FALSE) -> Closed | W96: =VLOOKUP(Q96,Stores!$A:$C,3,FALSE) -> Denver, CO | X96: 3280 | Y96: 1.432926829
A97: 8504 - Houston, TX - Sullivan's | C97: 75 | D97: 77.3 | E97: 0 | F97: 84.1 | G97: 90.9 | H97: 77.3 | I97: 72.7 | J97: 84.1 | L97: 72.7 | M97: 9.1 | N97: 0 | O97: 37 | P97: 44 | Q97: 8504 | R97: 3 | S97: 2012 | T97: =VLOOKUP(Q97,Stores!$A:$B,2,FALSE) -> SULL | U97: 2012-03 | V97: =VLOOKUP($Q97,Stores!$A:$D,4,FALSE) -> Closed | W97: =VLOOKUP(Q97,Stores!$A:$C,3,FALSE) -> Houston, TX | X97: 4584 | Y97: 0.9598603839
A98: 8510 - Wilmington, DE - Sullivan's | C98: 71.4 | D98: 78 | E98: 0 | F98: 84.6 | G98: 85.7 | H98: 74.7 | I98: 74.7 | J98: 73.6 | L98: 72.5 | M98: 8.8 | N98: 0 | O98: 70 | P98: 91 | Q98: 8510 | R98: 3 | S98: 2012 | T98: =VLOOKUP(Q98,Stores!$A:$B,2,FALSE) -> SULL | U98: 2012-03 | V98: =VLOOKUP($Q98,Stores!$A:$D,4,FALSE) -> Open | W98: =VLOOKUP(Q98,Stores!$A:$C,3,FALSE) -> Wilmington, DE | X98: 5609 | Y98: 1.622392583
A99: 8522 - King of Prussia, PA - Sullivan's | C99: 65.3 | D99: 74.7 | E99: 0 | F99: 76.8 | G99: 84.2 | H99: 67.4 | I99: 76.8 | J99: 58.9 | L99: 72.6 | M99: 10.5 | N99: 0 | O99: 75 | P99: 95 | Q99: 8522 | R99: 3 | S99: 2012 | T99: =VLOOKUP(Q99,Stores!$A:$B,2,FALSE) -> SULL | U99: 2012-03 | V99: =VLOOKUP($Q99,Stores!$A:$D,4,FALSE) -> Open | W99: =VLOOKUP(Q99,Stores!$A:$C,3,FALSE) -> King of Prussia, PA | X99: 7517 | Y99: 1.263802049
A100: 8525 - Tucson, AZ - Sullivan's | C100: 90.4 | D100: 91.8 | E100: 0 | F100: 93.2 | G100: 94.5 | H100: 90.4 | I100: 93.2 | J100: 87.7 | L100: 80.8 | M100: 2.7 | N100: 0 | O100: 58 | P100: 73 | Q100: 8525 | R100: 3 | S100: 2012 | T100: =VLOOKUP(Q100,Stores!$A:$B,2,FALSE) -> SULL | U100: 2012-03 | V100: =VLOOKUP($Q100,Stores!$A:$D,4,FALSE) -> Open | W100: =VLOOKUP(Q100,Stores!$A:$C,3,FALSE) -> Tucson, AZ | X100: 4388 | Y100: 1.663628077
A101: 8532 - Omaha, NE - Sullivan's | C101: 76.7 | D101: 90 | E101: 0 | F101: 86.7 | G101: 93.3 | H101: 76.7 | I101: 66.7 | J101: 83.3 | L101: 70 | M101: 6.7 | N101: 1 | O101: 16 | P101: 30 | Q101: 8532 | R101: 3 | S101: 2012 | T101: =VLOOKUP(Q101,Stores!$A:$B,2,FALSE) -> SULL | U101: 2012-03 | V101: =VLOOKUP($Q101,Stores!$A:$D,4,FALSE) -> Open | W101: =VLOOKUP(Q101,Stores!$A:$C,3,FALSE) -> Omaha, NE | X101: 4562 | Y101: 0.657606313
A102: 8535 - Baltimore, MD - Sullivan's | C102: 64 | D102: 76 | E102: 0 | F102: 56 | G102: 72 | H102: 60 | I102: 64 | J102: 56 | L102: 80 | M102: 8 | N102: 0 | O102: 17 | P102: 25 | Q102: 8535 | R102: 3 | S102: 2012 | T102: =VLOOKUP(Q102,Stores!$A:$B,2,FALSE) -> SULL | U102: 2012-03 | V102: =VLOOKUP($Q102,Stores!$A:$D,4,FALSE) -> Open | W102: =VLOOKUP(Q102,Stores!$A:$C,3,FALSE) -> Baltimore, MD | X102: 5520 | Y102: 0.4528985507
A103: 8536 - Leawood, KS - Sullivan's | C103: 71.4 | D103: 75 | E103: 0 | F103: 83.9 | G103: 85.7 | H103: 82.1 | I103: 78.6 | J103: 75 | L103: 85.7 | M103: 7.1 | N103: 0 | O103: 47 | P103: 56 | Q103: 8536 | R103: 3 | S103: 2012 | T103: =VLOOKUP(Q103,Stores!$A:$B,2,FALSE) -> SULL | U103: 2012-03 | V103: =VLOOKUP($Q103,Stores!$A:$D,4,FALSE) -> Open | W103: =VLOOKUP(Q103,Stores!$A:$C,3,FALSE) -> Leawood, KS | X103: 4366 | Y103: 1.282638571
A104: 8541 - Chicago, IL - Sullivan's | C104: 73.1 | D104: 80.8 | E104: 0 | F104: 73.1 | G104: 80.8 | H104: 73.1 | I104: 76.9 | J104: 76.9 | L104: 88.5 | M104: 11.5 | N104: 0 | O104: 19 | P104: 26 | Q104: 8541 | R104: 3 | S104: 2012 | T104: =VLOOKUP(Q104,Stores!$A:$B,2,FALSE) -> SULL | U104: 2012-03 | V104: =VLOOKUP($Q104,Stores!$A:$D,4,FALSE) -> Open | W104: =VLOOKUP(Q104,Stores!$A:$C,3,FALSE) -> Chicago, IL | X104: 3447 | Y104: 0.7542790833
A105: 8542 - Naperville, IL - Sullivan's | C105: 66.4 | D105: 73.3 | E105: 0 | F105: 82.4 | G105: 85.5 | H105: 76.3 | I105: 67.2 | J105: 72.5 | L105: 82.4 | M105: 6.9 | N105: 0 | O105: 101 | P105: 131 | Q105: 8542 | R105: 3 | S105: 2012 | T105: =VLOOKUP(Q105,Stores!$A:$B,2,FALSE) -> SULL | U105: 2012-03 | V105: =VLOOKUP($Q105,Stores!$A:$D,4,FALSE) -> Open | W105: =VLOOKUP(Q105,Stores!$A:$C,3,FALSE) -> Naperville, IL | X105: 6348 | Y105: 2.063642092
A106: 8543 - Lincolnshire, IL - Sullivan's | C106: 75 | D106: 79.2 | E106: 0 | F106: 70.8 | G106: 79.2 | H106: 66.7 | I106: 66.7 | J106: 62.5 | L106: 91.7 | M106: 4.2 | N106: 0 | O106: 17 | P106: 24 | Q106: 8543 | R106: 3 | S106: 2012 | T106: =VLOOKUP(Q106,Stores!$A:$B,2,FALSE) -> SULL | U106: 2012-03 | V106: =VLOOKUP($Q106,Stores!$A:$D,4,FALSE) -> Open | W106: =VLOOKUP(Q106,Stores!$A:$C,3,FALSE) -> Lincolnshire, IL | X106: 4062 | Y106: 0.5908419498
A107: 8551 - Baton Rouge, LA - Sullivan's | C107: 84.7 | D107: 89.4 | E107: 0 | F107: 83.5 | G107: 90.6 | H107: 83.5 | I107: 83.5 | J107: 88.2 | L107: 85.9 | M107: 2.4 | N107: 0 | O107: 58 | P107: 85 | Q107: 8551 | R107: 3 | S107: 2012 | T107: =VLOOKUP(Q107,Stores!$A:$B,2,FALSE) -> SULL | U107: 2012-03 | V107: =VLOOKUP($Q107,Stores!$A:$D,4,FALSE) -> Open | W107: =VLOOKUP(Q107,Stores!$A:$C,3,FALSE) -> Baton Rouge, LA | X107: 5429 | Y107: 1.565665868
A108: 8561 - Raleigh, NC - Sullivan's | C108: 65.3 | D108: 69.4 | E108: 0 | F108: 81.6 | G108: 83.7 | H108: 65.3 | I108: 71.4 | J108: 59.2 | L108: 73.5 | M108: 6.1 | N108: 0 | O108: 31 | P108: 49 | Q108: 8561 | R108: 3 | S108: 2012 | T108: =VLOOKUP(Q108,Stores!$A:$B,2,FALSE) -> SULL | U108: 2012-03 | V108: =VLOOKUP($Q108,Stores!$A:$D,4,FALSE) -> Open | W108: =VLOOKUP(Q108,Stores!$A:$C,3,FALSE) -> Raleigh, NC | X108: 5784 | Y108: 0.847164592
A109: 8562 - Charlotte, NC - Sullivan's | C109: 63.8 | D109: 72.3 | E109: 0 | F109: 80.9 | G109: 80.9 | H109: 74.5 | I109: 63.8 | J109: 66 | L109: 80.9 | M109: 10.6 | N109: 0 | O109: 37 | P109: 47 | Q109: 8562 | R109: 3 | S109: 2012 | T109: =VLOOKUP(Q109,Stores!$A:$B,2,FALSE) -> SULL | U109: 2012-03 | V109: =VLOOKUP($Q109,Stores!$A:$D,4,FALSE) -> Open | W109: =VLOOKUP(Q109,Stores!$A:$C,3,FALSE) -> Charlotte, NC | X109: 4647 | Y109: 1.011405208
A110: 8570 - Palm Desert, CA - Sullivan's | C110: 62.7 | D110: 64.4 | E110: 0 | F110: 72.9 | G110: 74.6 | H110: 67.8 | I110: 61 | J110: 61 | L110: 72.9 | M110: 10.2 | N110: 2 | O110: 48 | P110: 59 | Q110: 8570 | R110: 3 | S110: 2012 | T110: =VLOOKUP(Q110,Stores!$A:$B,2,FALSE) -> SULL | U110: 2012-03 | V110: =VLOOKUP($Q110,Stores!$A:$D,4,FALSE) -> Open | W110: =VLOOKUP(Q110,Stores!$A:$C,3,FALSE) -> Palm Desert, CA | X110: 7324 | Y110: 0.8055707264
A111: 8591 - Anchorage, AK - Sullivan's | C111: 71.4 | D111: 81.6 | E111: 0 | F111: 85.7 | G111: 87.8 | H111: 73.5 | I111: 77.6 | J111: 69.4 | L111: 85.7 | M111: 10.2 | N111: 0 | O111: 43 | P111: 49 | Q111: 8591 | R111: 3 | S111: 2012 | T111: =VLOOKUP(Q111,Stores!$A:$B,2,FALSE) -> SULL | U111: 2012-03 | V111: =VLOOKUP($Q111,Stores!$A:$D,4,FALSE) -> Open | W111: =VLOOKUP(Q111,Stores!$A:$C,3,FALSE) -> Anchorage, AK | X111: 5515 | Y111: 0.8884859474
A112: 8592 - Seattle, WA - Sullivan's | C112: 74.3 | D112: 79.7 | E112: 0 | F112: 83.8 | G112: 89.2 | H112: 81.1 | I112: 68.9 | J112: 77 | L112: 71.6 | M112: 5.4 | N112: 0 | O112: 51 | P112: 74 | Q112: 8592 | R112: 3 | S112: 2012 | T112: =VLOOKUP(Q112,Stores!$A:$B,2,FALSE) -> SULL | U112: 2012-03 | V112: =VLOOKUP($Q112,Stores!$A:$D,4,FALSE) -> Closed | W112: =VLOOKUP(Q112,Stores!$A:$C,3,FALSE) -> Seattle, WA | X112: 6121 | Y112: 1.208952785
A113: 8601 - Dallas, TX - Del Frisco's | C113: 80.6 | D113: 89.6 | E113: 0 | F113: 82.1 | G113: 88.1 | H113: 74.6 | I113: 80.6 | J113: 73.1 | L113: 80.6 | M113: 4.5 | N113: 1 | O113: 45 | P113: 67 | Q113: 8601 | R113: 3 | S113: 2012 | T113: =VLOOKUP(Q113,Stores!$A:$B,2,FALSE) -> DFDE | U113: 2012-03 | V113: =VLOOKUP($Q113,Stores!$A:$D,4,FALSE) -> Closed | W113: =VLOOKUP(Q113,Stores!$A:$C,3,FALSE) -> Dallas, TX | X113: 4932 | Y113: 1.358475264
A114: 8602 - Fort Worth, TX - Del Frisco's | C114: 79.2 | D114: 84 | E114: 0 | F114: 81.6 | G114: 85.6 | H114: 76 | I114: 83.2 | J114: 84.8 | L114: 64 | M114: 9.6 | N114: 0 | O114: 92 | P114: 125 | Q114: 8602 | R114: 3 | S114: 2012 | T114: =VLOOKUP(Q114,Stores!$A:$B,2,FALSE) -> DFDE | U114: 2012-03 | V114: =VLOOKUP($Q114,Stores!$A:$D,4,FALSE) -> Open | W114: =VLOOKUP(Q114,Stores!$A:$C,3,FALSE) -> Fort Worth, TX | X114: 7035 | Y114: 1.776830135
A115: 8603 - Denver, CO - Del Frisco's | C115: 70.6 | D115: 81.6 | E115: 0 | F115: 76.1 | G115: 78.5 | H115: 74.8 | I115: 84 | J115: 73 | L115: 48.5 | M115: 6.1 | N115: 0 | O115: 123 | P115: 163 | Q115: 8603 | R115: 3 | S115: 2012 | T115: =VLOOKUP(Q115,Stores!$A:$B,2,FALSE) -> DFDE | U115: 2012-03 | V115: =VLOOKUP($Q115,Stores!$A:$D,4,FALSE) -> Open | W115: =VLOOKUP(Q115,Stores!$A:$C,3,FALSE) -> Denver, CO | X115: 11303 | Y115: 1.442095019
A116: 8604 - Charlotte, NC - Del Frisco's | C116: 85.5 | D116: 85.5 | E116: 0 | F116: 85.5 | G116: 88.2 | H116: 85.5 | I116: 86.8 | J116: 85.5 | L116: 59.2 | M116: 7.9 | N116: 0 | O116: 47 | P116: 76 | Q116: 8604 | R116: 3 | S116: 2012 | T116: =VLOOKUP(Q116,Stores!$A:$B,2,FALSE) -> DFDE | U116: 2012-03 | V116: =VLOOKUP($Q116,Stores!$A:$D,4,FALSE) -> Open | W116: =VLOOKUP(Q116,Stores!$A:$C,3,FALSE) -> Charlotte, NC | X116: 5532 | Y116: 1.373825018
A117: 8605 - Houston, TX - Del Frisco's | C117: 74.7 | D117: 83.2 | E117: 0 | F117: 87.4 | G117: 89.5 | H117: 78.9 | I117: 85.3 | J117: 84.2 | L117: 70.5 | M117: 2.1 | N117: 1 | O117: 64 | P117: 95 | Q117: 8605 | R117: 3 | S117: 2012 | T117: =VLOOKUP(Q117,Stores!$A:$B,2,FALSE) -> DFDE | U117: 2012-03 | V117: =VLOOKUP($Q117,Stores!$A:$D,4,FALSE) -> Open | W117: =VLOOKUP(Q117,Stores!$A:$C,3,FALSE) -> Houston, TX | X117: 8914 | Y117: 1.065739287
A118: 8620 - New York City, NY - Del Frisco's | C118: 73.4 | D118: 78.9 | E118: 0 | F118: 83.9 | G118: 87.9 | H118: 73.9 | I118: 80.4 | J118: 72.9 | L118: 65.8 | M118: 5.5 | N118: 2 | O118: 143 | P118: 199 | Q118: 8620 | R118: 3 | S118: 2012 | T118: =VLOOKUP(Q118,Stores!$A:$B,2,FALSE) -> DFDE | U118: 2012-03 | V118: =VLOOKUP($Q118,Stores!$A:$D,4,FALSE) -> Open | W118: =VLOOKUP(Q118,Stores!$A:$C,3,FALSE) -> New York City, NY | X118: 21832 | Y118: 0.9115060462
A119: 8635 - Boston, MA - Del Frisco's | C119: 72.6 | D119: 82.3 | E119: 0 | F119: 83.9 | G119: 87.1 | H119: 75 | I119: 83.1 | J119: 75.8 | L119: 70.2 | M119: 8.9 | N119: 0 | O119: 88 | P119: 124 | Q119: 8635 | R119: 3 | S119: 2012 | T119: =VLOOKUP(Q119,Stores!$A:$B,2,FALSE) -> DFDE | U119: 2012-03 | V119: =VLOOKUP($Q119,Stores!$A:$D,4,FALSE) -> Open | W119: =VLOOKUP(Q119,Stores!$A:$C,3,FALSE) -> Boston, MA | X119: 11346 | Y119: 1.092896175
A120: 8640 - Las Vegas, NV - Del Frisco's | C120: 72.6 | D120: 74 | E120: 0 | F120: 84.9 | G120: 89 | H120: 74 | I120: 72.6 | J120: 74 | L120: 65.8 | M120: 9.6 | N120: 0 | O120: 59 | P120: 73 | Q120: 8640 | R120: 3 | S120: 2012 | T120: =VLOOKUP(Q120,Stores!$A:$B,2,FALSE) -> DFDE | U120: 2012-03 | V120: =VLOOKUP($Q120,Stores!$A:$D,4,FALSE) -> Open | W120: =VLOOKUP(Q120,Stores!$A:$C,3,FALSE) -> Las Vegas, NV | X120: 6855 | Y120: 1.06491612
A121: 8650 - Chicago, IL - Del Frisco's | C121: 71.1 | D121: 65.8 | E121: 0 | F121: 73.7 | G121: 78.9 | H121: 65.8 | I121: 76.3 | J121: 68.4 | L121: 52.6 | M121: 15.8 | N121: 0 | O121: 29 | P121: 38 | Q121: 8650 | R121: 3 | S121: 2012 | T121: =VLOOKUP(Q121,Stores!$A:$B,2,FALSE) -> DFDE | U121: 2012-03 | V121: =VLOOKUP($Q121,Stores!$A:$D,4,FALSE) -> Open | W121: =VLOOKUP(Q121,Stores!$A:$C,3,FALSE) -> Chicago, IL | X121: 5880 | Y121: 0.6462585034
A122: 8655 - Washington, DC - Del Frisco's | C122: 56.5 | D122: 69.6 | E122: 0 | F122: 66.7 | G122: 71 | H122: 60.9 | I122: 68.1 | J122: 65.2 | L122: 63.8 | M122: 14.5 | N122: 1 | O122: 52 | P122: 69 | Q122: 8655 | R122: 3 | S122: 2012 | T122: =VLOOKUP(Q122,Stores!$A:$B,2,FALSE) -> DFDE | U122: 2012-03 | V122: =VLOOKUP($Q122,Stores!$A:$D,4,FALSE) -> Open | W122: =VLOOKUP(Q122,Stores!$A:$C,3,FALSE) -> Washington, DC | X122: 8984 | Y122: 0.768032057
A123: 8680 - Philadelphia, PA - Del Frisco's | C123: 68.8 | D123: 76.8 | E123: 0 | F123: 76.8 | G123: 86.6 | H123: 71.4 | I123: 75 | J123: 81.3 | L123: 66.1 | M123: 5.4 | N123: 1 | O123: 71 | P123: 112 | Q123: 8680 | R123: 3 | S123: 2012 | T123: =VLOOKUP(Q123,Stores!$A:$B,2,FALSE) -> DFDE | U123: 2012-03 | V123: =VLOOKUP($Q123,Stores!$A:$D,4,FALSE) -> Open | W123: =VLOOKUP(Q123,Stores!$A:$C,3,FALSE) -> Philadelphia, PA | X123: 11908 | Y123: 0.940544172
A124: 8701 - New York City, NY - Grille | C124: 63.3 | D124: 73.3 | E124: 0 | F124: 73.3 | G124: 76.7 | H124: 66.7 | I124: 66.7 | J124: 56.7 | L124: 70 | M124: 13.3 | N124: 0 | O124: 18 | P124: 30 | Q124: 8701 | R124: 3 | S124: 2012 | T124: =VLOOKUP(Q124,Stores!$A:$B,2,FALSE) -> DFG | U124: 2012-03 | V124: =VLOOKUP($Q124,Stores!$A:$D,4,FALSE) -> Open | W124: =VLOOKUP(Q124,Stores!$A:$C,3,FALSE) -> New York City, NY | X124: 11385 | Y124: 0.2635046113
A125: 8702 - Dallas, TX - Grille | C125: 79.3 | D125: 82.8 | E125: 0 | F125: 75.9 | G125: 86.2 | H125: 72.4 | I125: 72.4 | J125: 62.1 | L125: 69 | M125: 6.9 | N125: 1 | O125: 22 | P125: 29 | Q125: 8702 | R125: 3 | S125: 2012 | T125: =VLOOKUP(Q125,Stores!$A:$B,2,FALSE) -> DFG | U125: 2012-03 | V125: =VLOOKUP($Q125,Stores!$A:$D,4,FALSE) -> Open | W125: =VLOOKUP(Q125,Stores!$A:$C,3,FALSE) -> Dallas, TX | X125: 8567 | Y125: 0.3385082293
A126: 8703 - Washington, DC - Grille | C126: 70.8 | D126: 62.5 | E126: 0 | F126: 75 | G126: 79.2 | H126: 79.2 | I126: 66.7 | J126: 66.7 | L126: 50 | M126: 12.5 | N126: 0 | O126: 22 | P126: 24 | Q126: 8703 | R126: 3 | S126: 2012 | T126: =VLOOKUP(Q126,Stores!$A:$B,2,FALSE) -> DFG | U126: 2012-03 | V126: =VLOOKUP($Q126,Stores!$A:$D,4,FALSE) -> Open | W126: =VLOOKUP(Q126,Stores!$A:$C,3,FALSE) -> Washington, DC | X126: 5742 | Y126: 0.4179728318
A127: 8704 - Phoenix, AZ - Grille | C127: 88.9 | D127: 77.8 | E127: 0 | F127: 88.9 | G127: 100 | H127: 88.9 | I127: 88.9 | J127: 100 | L127: 44.4 | M127: 0 | N127: 0 | O127: 7 | P127: 9 | Q127: 8704 | R127: 3 | S127: 2012 | T127: =VLOOKUP(Q127,Stores!$A:$B,2,FALSE) -> DFG | U127: 2012-03 | V127: =VLOOKUP($Q127,Stores!$A:$D,4,FALSE) -> Closed | W127: =VLOOKUP(Q127,Stores!$A:$C,3,FALSE) -> Phoenix, AZ | X127: 3865 | Y127: 0.2328589909
A128: 8705 - Palm Beach, FL - Grille | C128: 63.6 | D128: 75 | E128: 0 | F128: 75 | G128: 86.4 | H128: 52.3 | I128: 65.9 | J128: 70.5 | L128: 79.5 | M128: 22.7 | N128: 1 | O128: 28 | P128: 44 | Q128: 8705 | R128: 3 | S128: 2012 | T128: =VLOOKUP(Q128,Stores!$A:$B,2,FALSE) -> DFG | U128: 2012-03 | V128: =VLOOKUP($Q128,Stores!$A:$D,4,FALSE) -> Closed | W128: =VLOOKUP(Q128,Stores!$A:$C,3,FALSE) -> Palm Beach, FL | X128: 3379 | Y128: 1.302160402
A129: 8706 - Atlanta, GA - Grille | C129: 60 | D129: 60 | E129: 0 | F129: 68 | G129: 72 | H129: 68 | I129: 76 | J129: 60 | L129: 72 | M129: 8 | N129: 0 | O129: 18 | P129: 25 | Q129: 8706 | R129: 3 | S129: 2012 | T129: =VLOOKUP(Q129,Stores!$A:$B,2,FALSE) -> DFG | U129: 2012-03 | V129: =VLOOKUP($Q129,Stores!$A:$D,4,FALSE) -> Open | W129: =VLOOKUP(Q129,Stores!$A:$C,3,FALSE) -> Atlanta, GA | X129: 8093 | Y129: 0.3089089336
A130: 8707 - River Oaks, TX - Grille | C130: 73.3 | D130: 83.3 | E130: 0 | F130: 83.3 | G130: 83.3 | H130: 76.7 | I130: 80 | J130: 63.3 | L130: 53.3 | M130: 10 | N130: 0 | O130: 22 | P130: 30 | Q130: 8707 | R130: 3 | S130: 2012 | T130: =VLOOKUP(Q130,Stores!$A:$B,2,FALSE) -> DFG | U130: 2012-03 | V130: =VLOOKUP($Q130,Stores!$A:$D,4,FALSE) -> Open | W130: =VLOOKUP(Q130,Stores!$A:$C,3,FALSE) -> Houston, TX | X130: 7492 | Y130: 0.4004271223
A131: 8708 - Chestnut Hill, MA - Grille | C131: 73.5 | D131: 76.5 | E131: 0 | F131: 85.3 | G131: 88.2 | H131: 82.4 | I131: 79.4 | J131: 70.6 | L131: 61.8 | M131: 5.9 | N131: 1 | O131: 26 | P131: 34 | Q131: =MID(A131,1,4)*1 -> 8708 | R131: 3 | S131: 2012 | T131: =VLOOKUP(Q131,Stores!$A:$B,2,FALSE) -> DFG | U131: =S131&"-"&REPT("0",2-LEN(R131))&R131 -> 2012-03 | V131: =VLOOKUP($Q131,Stores!$A:$D,4,FALSE) -> Open | W131: =VLOOKUP(Q131,Stores!$A:$C,3,FALSE) -> Chestnut Hill, MA | X131: 6440 | Y131: =P131/(X131/100) -> 0.5279503106
A132: 8709 - Santa Monica, CA - Grille | C132: 57.1 | D132: 71.4 | E132: 0 | F132: 64.3 | G132: 78.6 | H132: 71.4 | I132: 42.9 | J132: 71.4 | L132: 50 | M132: 14.3 | N132: 1 | O132: 9 | P132: 14 | Q132: 8709 | R132: 3 | S132: 2012 | T132: =VLOOKUP(Q132,Stores!$A:$B,2,FALSE) -> DFG | U132: 2012-03 | V132: =VLOOKUP($Q132,Stores!$A:$D,4,FALSE) -> Open | W132: =VLOOKUP(Q132,Stores!$A:$C,3,FALSE) -> Santa Monica, CA | X132: 12795 | Y132: 0.1094177413
A133: 8710 - Fort Worth, TX - Grille | C133: 79.8 | D133: 83 | E133: 0 | F133: 83 | G133: 84 | H133: 81.9 | I133: 83 | J133: 85.1 | L133: 64.9 | M133: 7.4 | N133: 1 | O133: 61 | P133: 94 | Q133: 8710 | R133: 3 | S133: 2012 | T133: =VLOOKUP(Q133,Stores!$A:$B,2,FALSE) -> DFG | U133: 2012-03 | V133: =VLOOKUP($Q133,Stores!$A:$D,4,FALSE) -> Open | W133: =VLOOKUP(Q133,Stores!$A:$C,3,FALSE) -> Fort Worth, TX | X133: 9606 | Y133: 0.9785550697
A134: 8712 - Southlake, TX - Grille | C134: 76.6 | D134: 82.2 | E134: 0 | F134: 83.2 | G134: 86 | H134: 70.1 | I134: 84.1 | J134: 80.4 | L134: 93.5 | M134: 8.4 | N134: 2 | O134: 79 | P134: 107 | Q134: 8712 | R134: 3 | S134: 2012 | T134: =VLOOKUP(Q134,Stores!$A:$B,2,FALSE) -> DFG | U134: 2012-03 | V134: =VLOOKUP($Q134,Stores!$A:$D,4,FALSE) -> Open | W134: =VLOOKUP(Q134,Stores!$A:$C,3,FALSE) -> Southlake, TX | X134: 11540 | Y134: 0.9272097054
A135: 8713 - Burlington, MA - Grille | B135: 41794 | C135: 66.7 | D135: 66.7 | E135: 0 | F135: 80.6 | G135: 86.1 | H135: 75 | I135: 66.7 | J135: 61.1 | L135: 41.7 | M135: 11.1 | N135: 1 | O135: 30 | P135: 36 | Q135: 8713 | R135: 3 | S135: 2012 | T135: =VLOOKUP(Q135,Stores!$A:$B,2,FALSE) -> DFG | U135: 2012-03 | V135: =VLOOKUP($Q135,Stores!$A:$D,4,FALSE) -> Open | W135: =VLOOKUP(Q135,Stores!$A:$C,3,FALSE) -> Burlington, MA | X135: 9237 | Y135: 0.3897369276
A136: 8714 - N Bethesda, MD - Grille | B136: 41908 | C136: 71 | D136: 77.4 | E136: 0 | F136: 80.6 | G136: 83.9 | H136: 74.2 | I136: 77.4 | J136: 64.5 | L136: 67.7 | M136: 12.9 | N136: 0 | O136: 27 | P136: 31 | Q136: 8714 | R136: 3 | S136: 2012 | T136: =VLOOKUP(Q136,Stores!$A:$B,2,FALSE) -> DFG | U136: 2012-03 | V136: =VLOOKUP($Q136,Stores!$A:$D,4,FALSE) -> Open | W136: =VLOOKUP(Q136,Stores!$A:$C,3,FALSE) -> N. Bethesda, MD | X136: 6583 | Y136: 0.4709099195
A137: 8715 - Irvine, CA - Grille | C137: 80 | D137: 82.9 | E137: 0 | F137: 85.7 | G137: 88.6 | H137: 74.3 | I137: 82.9 | J137: 85.7 | L137: 68.6 | M137: 0 | N137: 0 | O137: 31 | P137: 35 | Q137: 8715 | R137: 3 | S137: 2012 | T137: =VLOOKUP(Q137,Stores!$A:$B,2,FALSE) -> DFG | U137: 2012-03 | V137: =VLOOKUP($Q137,Stores!$A:$D,4,FALSE) -> Open | W137: =VLOOKUP(Q137,Stores!$A:$C,3,FALSE) -> Irvine, CA | X137: 6772 | Y137: 0.5168340224
A138: 8716 - Tampa, FL - Grille | C138: 88.9 | D138: 88.9 | E138: 0 | F138: 97.2 | G138: 94.4 | H138: 91.7 | I138: 94.4 | J138: 91.7 | L138: 52.8 | M138: 0 | N138: 0 | O138: 28 | P138: 36 | Q138: 8716 | R138: 3 | S138: 2012 | T138: =VLOOKUP(Q138,Stores!$A:$B,2,FALSE) -> DFG | U138: 2012-03 | V138: =VLOOKUP($Q138,Stores!$A:$D,4,FALSE) -> Open | W138: =VLOOKUP(Q138,Stores!$A:$C,3,FALSE) -> Tampa, FL | X138: 9143 | Y138: 0.3937438478
A139: 8717 - Pasadena, CA - Grille | B139: 41992 | C139: 61 | D139: 80.5 | E139: 0 | F139: 80.5 | G139: 87.8 | H139: 68.3 | I139: 56.1 | J139: 78 | L139: 70.7 | M139: 2.4 | N139: 0 | O139: 28 | P139: 41 | Q139: 8717 | R139: 3 | S139: 2012 | T139: =VLOOKUP(Q139,Stores!$A:$B,2,FALSE) -> DFG | U139: 2012-03 | V139: =VLOOKUP($Q139,Stores!$A:$D,4,FALSE) -> Open | W139: =VLOOKUP(Q139,Stores!$A:$C,3,FALSE) -> Pasadena, CA | X139: 5725 | Y139: 0.7161572052
A140: 8501 - Austin, TX - Sullivan's | C140: 81.1 | D140: 78.4 | E140: 0 | F140: 89.2 | G140: 89.2 | H140: 81.1 | I140: 75.7 | J140: 81.1 | K140: 71.4 | L140: 86.5 | M140: 8.1 | N140: 1 | O140: 30 | P140: 37 | Q140: 8501 | R140: 4 | S140: 2012 | T140: =VLOOKUP(Q140,Stores!$A:$B,2,FALSE) -> SULL | U140: 2012-04 | V140: =VLOOKUP($Q140,Stores!$A:$D,4,FALSE) -> Open | W140: =VLOOKUP(Q140,Stores!$A:$C,3,FALSE) -> Austin, TX | X140: 6080 | Y140: 0.6085526316
A141: 8502 - Indianapolis, IN - Sullivan's | C141: 72.2 | D141: 73.2 | E141: 0 | F141: 81.4 | G141: 86.6 | H141: 73.2 | I141: 77.3 | J141: 75.3 | K141: 42.3 | L141: 62.9 | M141: 9.3 | N141: 0 | O141: 69 | P141: 97 | Q141: 8502 | R141: 4 | S141: 2012 | T141: =VLOOKUP(Q141,Stores!$A:$B,2,FALSE) -> SULL | U141: 2012-04 | V141: =VLOOKUP($Q141,Stores!$A:$D,4,FALSE) -> Open | W141: =VLOOKUP(Q141,Stores!$A:$C,3,FALSE) -> Indianapolis, IN | X141: 6983 | Y141: 1.389087785
A142: 8503 - Denver, CO - Sullivan's | C142: 72 | D142: 84 | E142: 0 | F142: 68 | G142: 84 | H142: 76 | I142: 84 | J142: 84 | K142: 50 | L142: 84 | M142: 12 | N142: 0 | O142: 17 | P142: 25 | Q142: 8503 | R142: 4 | S142: 2012 | T142: =VLOOKUP(Q142,Stores!$A:$B,2,FALSE) -> SULL | U142: 2012-04 | V142: =VLOOKUP($Q142,Stores!$A:$D,4,FALSE) -> Closed | W142: =VLOOKUP(Q142,Stores!$A:$C,3,FALSE) -> Denver, CO | X142: 2231 | Y142: 1.120573734
A143: 8504 - Houston, TX - Sullivan's | C143: 76.8 | D143: 82.1 | E143: 0 | F143: 82.1 | G143: 89.3 | H143: 83.9 | I143: 78.6 | J143: 80.4 | K143: 70.8 | L143: 67.9 | M143: 5.4 | N143: 0 | O143: 42 | P143: 56 | Q143: 8504 | R143: 4 | S143: 2012 | T143: =VLOOKUP(Q143,Stores!$A:$B,2,FALSE) -> SULL | U143: 2012-04 | V143: =VLOOKUP($Q143,Stores!$A:$D,4,FALSE) -> Closed | W143: =VLOOKUP(Q143,Stores!$A:$C,3,FALSE) -> Houston, TX | X143: 4235 | Y143: 1.32231405
A144: 8510 - Wilmington, DE - Sullivan's | C144: 76.7 | D144: 80.2 | E144: 0 | F144: 89.5 | G144: 90.7 | H144: 81.4 | I144: 84.9 | J144: 81.4 | K144: 56.3 | L144: 83.7 | M144: 7 | N144: 0 | O144: 71 | P144: 86 | Q144: 8510 | R144: 4 | S144: 2012 | T144: =VLOOKUP(Q144,Stores!$A:$B,2,FALSE) -> SULL | U144: 2012-04 | V144: =VLOOKUP($Q144,Stores!$A:$D,4,FALSE) -> Open | W144: =VLOOKUP(Q144,Stores!$A:$C,3,FALSE) -> Wilmington, DE | X144: 5579 | Y144: 1.541494892
A145: 8522 - King of Prussia, PA - Sullivan's | C145: 58.8 | D145: 72.9 | E145: 0 | F145: 76.5 | G145: 78.8 | H145: 70.6 | I145: 63.5 | J145: 62.4 | K145: 42.9 | L145: 83.5 | M145: 9.4 | N145: 1 | O145: 66 | P145: 85 | Q145: 8522 | R145: 4 | S145: 2012 | T145: =VLOOKUP(Q145,Stores!$A:$B,2,FALSE) -> SULL | U145: 2012-04 | V145: =VLOOKUP($Q145,Stores!$A:$D,4,FALSE) -> Open | W145: =VLOOKUP(Q145,Stores!$A:$C,3,FALSE) -> King of Prussia, PA | X145: 7019 | Y145: 1.210998718
A146: 8525 - Tucson, AZ - Sullivan's | C146: 78.4 | D146: 79.7 | E146: 0 | F146: 90.5 | G146: 91.9 | H146: 86.5 | I146: 85.1 | J146: 85.1 | K146: 83.3 | L146: 68.9 | M146: 4.1 | N146: 1 | O146: 61 | P146: 74 | Q146: 8525 | R146: 4 | S146: 2012 | T146: =VLOOKUP(Q146,Stores!$A:$B,2,FALSE) -> SULL | U146: 2012-04 | V146: =VLOOKUP($Q146,Stores!$A:$D,4,FALSE) -> Open | W146: =VLOOKUP(Q146,Stores!$A:$C,3,FALSE) -> Tucson, AZ | X146: 3985 | Y146: 1.856963614
A147: 8532 - Omaha, NE - Sullivan's | C147: 76.5 | D147: 76.5 | E147: 0 | F147: 73.5 | G147: 94.1 | H147: 79.4 | I147: 88.2 | J147: 85.3 | K147: 64.3 | L147: 88.2 | M147: 0 | N147: 0 | O147: 24 | P147: 34 | Q147: 8532 | R147: 4 | S147: 2012 | T147: =VLOOKUP(Q147,Stores!$A:$B,2,FALSE) -> SULL | U147: 2012-04 | V147: =VLOOKUP($Q147,Stores!$A:$D,4,FALSE) -> Open | W147: =VLOOKUP(Q147,Stores!$A:$C,3,FALSE) -> Omaha, NE | X147: 4497 | Y147: 0.7560595953
A148: 8535 - Baltimore, MD - Sullivan's | C148: 60 | D148: 76 | E148: 0 | F148: 68 | G148: 68 | H148: 60 | I148: 68 | J148: 68 | K148: 36.4 | L148: 56 | M148: 16 | N148: 0 | O148: 21 | P148: 25 | Q148: 8535 | R148: 4 | S148: 2012 | T148: =VLOOKUP(Q148,Stores!$A:$B,2,FALSE) -> SULL | U148: 2012-04 | V148: =VLOOKUP($Q148,Stores!$A:$D,4,FALSE) -> Open | W148: =VLOOKUP(Q148,Stores!$A:$C,3,FALSE) -> Baltimore, MD | X148: 5654 | Y148: 0.4421648391
A149: 8536 - Leawood, KS - Sullivan's | C149: 61.7 | D149: 66.7 | E149: 0 | F149: 75 | G149: 80 | H149: 68.3 | I149: 61.7 | J149: 73.3 | K149: 28.6 | L149: 93.3 | M149: 11.7 | N149: 0 | O149: 44 | P149: 60 | Q149: 8536 | R149: 4 | S149: 2012 | T149: =VLOOKUP(Q149,Stores!$A:$B,2,FALSE) -> SULL | U149: 2012-04 | V149: =VLOOKUP($Q149,Stores!$A:$D,4,FALSE) -> Open | W149: =VLOOKUP(Q149,Stores!$A:$C,3,FALSE) -> Leawood, KS | X149: 5244 | Y149: 1.14416476
A150: 8541 - Chicago, IL - Sullivan's | C150: 75 | D150: 81.3 | E150: 0 | F150: 81.3 | G150: 90.6 | H150: 68.8 | I150: 90.6 | J150: 81.3 | K150: 58.3 | L150: 90.6 | M150: 6.3 | N150: 0 | O150: 27 | P150: 32 | Q150: 8541 | R150: 4 | S150: 2012 | T150: =VLOOKUP(Q150,Stores!$A:$B,2,FALSE) -> SULL | U150: 2012-04 | V150: =VLOOKUP($Q150,Stores!$A:$D,4,FALSE) -> Open | W150: =VLOOKUP(Q150,Stores!$A:$C,3,FALSE) -> Chicago, IL | X150: 2643 | Y150: 1.210745365
A151: 8542 - Naperville, IL - Sullivan's | C151: 72.5 | D151: 78.9 | E151: 0 | F151: 78.9 | G151: 83.5 | H151: 77.1 | I151: 73.4 | J151: 73.4 | K151: 33.3 | L151: 79.8 | M151: 11 | N151: 2 | O151: 74 | P151: 109 | Q151: 8542 | R151: 4 | S151: 2012 | T151: =VLOOKUP(Q151,Stores!$A:$B,2,FALSE) -> SULL | U151: 2012-04 | V151: =VLOOKUP($Q151,Stores!$A:$D,4,FALSE) -> Open | W151: =VLOOKUP(Q151,Stores!$A:$C,3,FALSE) -> Naperville, IL | X151: 6700 | Y151: 1.626865672
A152: 8543 - Lincolnshire, IL - Sullivan's | C152: 52.2 | D152: 60.9 | E152: 0 | F152: 65.2 | G152: 69.6 | H152: 65.2 | I152: 65.2 | J152: 73.9 | K152: 55.6 | L152: 73.9 | M152: 17.4 | N152: 0 | O152: 16 | P152: 23 | Q152: 8543 | R152: 4 | S152: 2012 | T152: =VLOOKUP(Q152,Stores!$A:$B,2,FALSE) -> SULL | U152: 2012-04 | V152: =VLOOKUP($Q152,Stores!$A:$D,4,FALSE) -> Open | W152: =VLOOKUP(Q152,Stores!$A:$C,3,FALSE) -> Lincolnshire, IL | X152: 3806 | Y152: 0.6043089858
A153: 8551 - Baton Rouge, LA - Sullivan's | C153: 80.3 | D153: 85.5 | E153: 0 | F153: 82.9 | G153: 92.1 | H153: 75 | I153: 86.8 | J153: 90.8 | K153: 63.2 | L153: 86.8 | M153: 5.3 | N153: 0 | O153: 55 | P153: 76 | Q153: 8551 | R153: 4 | S153: 2012 | T153: =VLOOKUP(Q153,Stores!$A:$B,2,FALSE) -> SULL | U153: 2012-04 | V153: =VLOOKUP($Q153,Stores!$A:$D,4,FALSE) -> Open | W153: =VLOOKUP(Q153,Stores!$A:$C,3,FALSE) -> Baton Rouge, LA | X153: 4653 | Y153: 1.633354825
A154: 8561 - Raleigh, NC - Sullivan's | C154: 74.2 | D154: 87.1 | E154: 0 | F154: 82.3 | G154: 90.3 | H154: 71 | I154: 75.8 | J154: 72.6 | K154: 45.5 | L154: 79 | M154: 6.5 | N154: 1 | O154: 48 | P154: 62 | Q154: 8561 | R154: 4 | S154: 2012 | T154: =VLOOKUP(Q154,Stores!$A:$B,2,FALSE) -> SULL | U154: 2012-04 | V154: =VLOOKUP($Q154,Stores!$A:$D,4,FALSE) -> Open | W154: =VLOOKUP(Q154,Stores!$A:$C,3,FALSE) -> Raleigh, NC | X154: 6475 | Y154: 0.9575289575
A155: 8562 - Charlotte, NC - Sullivan's | C155: 88.2 | D155: 79.4 | E155: 0 | F155: 79.4 | G155: 94.1 | H155: 79.4 | I155: 85.3 | J155: 76.5 | K155: 54.5 | L155: 64.7 | M155: 0 | N155: 0 | O155: 24 | P155: 34 | Q155: 8562 | R155: 4 | S155: 2012 | T155: =VLOOKUP(Q155,Stores!$A:$B,2,FALSE) -> SULL | U155: 2012-04 | V155: =VLOOKUP($Q155,Stores!$A:$D,4,FALSE) -> Open | W155: =VLOOKUP(Q155,Stores!$A:$C,3,FALSE) -> Charlotte, NC | X155: 4296 | Y155: 0.791433892
A156: 8570 - Palm Desert, CA - Sullivan's | C156: 68.1 | D156: 72.3 | E156: 0 | F156: 78.7 | G156: 93.6 | H156: 78.7 | I156: 68.1 | J156: 63.8 | K156: 57.9 | L156: 74.5 | M156: 2.1 | N156: 0 | O156: 36 | P156: 47 | Q156: 8570 | R156: 4 | S156: 2012 | T156: =VLOOKUP(Q156,Stores!$A:$B,2,FALSE) -> SULL | U156: 2012-04 | V156: =VLOOKUP($Q156,Stores!$A:$D,4,FALSE) -> Open | W156: =VLOOKUP(Q156,Stores!$A:$C,3,FALSE) -> Palm Desert, CA | X156: 6450 | Y156: 0.7286821705
A157: 8591 - Anchorage, AK - Sullivan's | C157: 76.5 | D157: 72.5 | E157: 0 | F157: 78.4 | G157: 86.3 | H157: 76.5 | I157: 74.5 | J157: 70.6 | K157: 72 | L157: 80.4 | M157: 11.8 | N157: 0 | O157: 41 | P157: 51 | Q157: 8591 | R157: 4 | S157: 2012 | T157: =VLOOKUP(Q157,Stores!$A:$B,2,FALSE) -> SULL | U157: 2012-04 | V157: =VLOOKUP($Q157,Stores!$A:$D,4,FALSE) -> Open | W157: =VLOOKUP(Q157,Stores!$A:$C,3,FALSE) -> Anchorage, AK | X157: 4011 | Y157: 1.271503366
A158: 8592 - Seattle, WA - Sullivan's | C158: 89.4 | D158: 86.4 | E158: 0 | F158: 86.4 | G158: 87.9 | H158: 86.4 | I158: 84.8 | J158: 84.8 | K158: 76 | L158: 63.6 | M158: 1.5 | N158: 0 | O158: 48 | P158: 66 | Q158: 8592 | R158: 4 | S158: 2012 | T158: =VLOOKUP(Q158,Stores!$A:$B,2,FALSE) -> SULL | U158: 2012-04 | V158: =VLOOKUP($Q158,Stores!$A:$D,4,FALSE) -> Closed | W158: =VLOOKUP(Q158,Stores!$A:$C,3,FALSE) -> Seattle, WA | X158: 5847 | Y158: 1.128783992
A159: 8601 - Dallas, TX - Del Frisco's | C159: 76.5 | D159: 77.6 | E159: 0 | F159: 76.5 | G159: 82.4 | H159: 72.9 | I159: 77.6 | J159: 74.1 | K159: 39.3 | L159: 70.6 | M159: 5.9 | N159: 1 | O159: 61 | P159: 85 | Q159: 8601 | R159: 4 | S159: 2012 | T159: =VLOOKUP(Q159,Stores!$A:$B,2,FALSE) -> DFDE | U159: 2012-04 | V159: =VLOOKUP($Q159,Stores!$A:$D,4,FALSE) -> Closed | W159: =VLOOKUP(Q159,Stores!$A:$C,3,FALSE) -> Dallas, TX | X159: 5035 | Y159: 1.688182721
A160: 8602 - Fort Worth, TX - Del Frisco's | C160: 78 | D160: 84.1 | E160: 0 | F160: 84.8 | G160: 88.6 | H160: 79.5 | I160: 84.8 | J160: 78.8 | K160: 50.7 | L160: 68.2 | M160: 7.6 | N160: 1 | O160: 96 | P160: 132 | Q160: 8602 | R160: 4 | S160: 2012 | T160: =VLOOKUP(Q160,Stores!$A:$B,2,FALSE) -> DFDE | U160: 2012-04 | V160: =VLOOKUP($Q160,Stores!$A:$D,4,FALSE) -> Open | W160: =VLOOKUP(Q160,Stores!$A:$C,3,FALSE) -> Fort Worth, TX | X160: 7514 | Y160: 1.756720788
A161: 8603 - Denver, CO - Del Frisco's | C161: 77.2 | D161: 81.2 | E161: 0 | F161: 79.2 | G161: 86.1 | H161: 74.3 | I161: 80.2 | J161: 73.3 | K161: 60.9 | L161: 59.4 | M161: 5.9 | N161: 0 | O161: 69 | P161: 101 | Q161: 8603 | R161: 4 | S161: 2012 | T161: =VLOOKUP(Q161,Stores!$A:$B,2,FALSE) -> DFDE | U161: 2012-04 | V161: =VLOOKUP($Q161,Stores!$A:$D,4,FALSE) -> Open | W161: =VLOOKUP(Q161,Stores!$A:$C,3,FALSE) -> Denver, CO | X161: 8460 | Y161: 1.193853428
A162: 8604 - Charlotte, NC - Del Frisco's | C162: 69.6 | D162: 76.8 | E162: 0 | F162: 88.4 | G162: 89.9 | H162: 82.6 | I162: 72.5 | J162: 81.2 | K162: 61.8 | L162: 65.2 | M162: 10.1 | N162: 0 | O162: 45 | P162: 69 | Q162: 8604 | R162: 4 | S162: 2012 | T162: =VLOOKUP(Q162,Stores!$A:$B,2,FALSE) -> DFDE | U162: 2012-04 | V162: =VLOOKUP($Q162,Stores!$A:$D,4,FALSE) -> Open | W162: =VLOOKUP(Q162,Stores!$A:$C,3,FALSE) -> Charlotte, NC | X162: 4829 | Y162: 1.42886726
A163: 8605 - Houston, TX - Del Frisco's | C163: 83.8 | D163: 84.8 | E163: 0 | F163: 81.8 | G163: 87.9 | H163: 79.8 | I163: 86.9 | J163: 80.8 | K163: 51.1 | L163: 80.8 | M163: 4 | N163: 0 | O163: 59 | P163: 99 | Q163: 8605 | R163: 4 | S163: 2012 | T163: =VLOOKUP(Q163,Stores!$A:$B,2,FALSE) -> DFDE | U163: 2012-04 | V163: =VLOOKUP($Q163,Stores!$A:$D,4,FALSE) -> Open | W163: =VLOOKUP(Q163,Stores!$A:$C,3,FALSE) -> Houston, TX | X163: 8542 | Y163: 1.158979162
A164: 8620 - New York City, NY - Del Frisco's | C164: 72.7 | D164: 76 | E164: 0 | F164: 82 | G164: 87.6 | H164: 78.3 | I164: 76.8 | J164: 77.9 | K164: 46.1 | L164: 67.4 | M164: 7.1 | N164: 1 | O164: 192 | P164: 267 | Q164: 8620 | R164: 4 | S164: 2012 | T164: =VLOOKUP(Q164,Stores!$A:$B,2,FALSE) -> DFDE | U164: 2012-04 | V164: =VLOOKUP($Q164,Stores!$A:$D,4,FALSE) -> Open | W164: =VLOOKUP(Q164,Stores!$A:$C,3,FALSE) -> New York City, NY | X164: 22258 | Y164: 1.199568694
A165: 8635 - Boston, MA - Del Frisco's | C165: 76.5 | D165: 83.3 | E165: 0 | F165: 86.3 | G165: 90.2 | H165: 76.5 | I165: 77.5 | J165: 79.4 | K165: 45.3 | L165: 72.5 | M165: 2 | N165: 0 | O165: 71 | P165: 102 | Q165: 8635 | R165: 4 | S165: 2012 | T165: =VLOOKUP(Q165,Stores!$A:$B,2,FALSE) -> DFDE | U165: 2012-04 | V165: =VLOOKUP($Q165,Stores!$A:$D,4,FALSE) -> Open | W165: =VLOOKUP(Q165,Stores!$A:$C,3,FALSE) -> Boston, MA | X165: 11435 | Y165: 0.891998251
A166: 8640 - Las Vegas, NV - Del Frisco's | C166: 78.7 | D166: 84 | E166: 0 | F166: 80 | G166: 85.3 | H166: 70.7 | I166: 88 | J166: 80 | K166: 48.6 | L166: 69.3 | M166: 2.7 | N166: 0 | O166: 56 | P166: 75 | Q166: 8640 | R166: 4 | S166: 2012 | T166: =VLOOKUP(Q166,Stores!$A:$B,2,FALSE) -> DFDE | U166: 2012-04 | V166: =VLOOKUP($Q166,Stores!$A:$D,4,FALSE) -> Open | W166: =VLOOKUP(Q166,Stores!$A:$C,3,FALSE) -> Las Vegas, NV | X166: 7013 | Y166: 1.069442464
A167: 8650 - Chicago, IL - Del Frisco's | C167: 67.6 | D167: 85.3 | E167: 0 | F167: 85.3 | G167: 85.3 | H167: 67.6 | I167: 76.5 | J167: 85.3 | K167: 50 | L167: 67.6 | M167: 11.8 | N167: 1 | O167: 22 | P167: 34 | Q167: 8650 | R167: 4 | S167: 2012 | T167: =VLOOKUP(Q167,Stores!$A:$B,2,FALSE) -> DFDE | U167: 2012-04 | V167: =VLOOKUP($Q167,Stores!$A:$D,4,FALSE) -> Open | W167: =VLOOKUP(Q167,Stores!$A:$C,3,FALSE) -> Chicago, IL | X167: 4599 | Y167: 0.7392911503
A168: 8655 - Washington, DC - Del Frisco's | C168: 75.4 | D168: 78.5 | E168: 0 | F168: 78.5 | G168: 86.2 | H168: 70.8 | I168: 87.7 | J168: 86.2 | K168: 56.8 | L168: 61.5 | M168: 6.2 | N168: 0 | O168: 43 | P168: 65 | Q168: 8655 | R168: 4 | S168: 2012 | T168: =VLOOKUP(Q168,Stores!$A:$B,2,FALSE) -> DFDE | U168: 2012-04 | V168: =VLOOKUP($Q168,Stores!$A:$D,4,FALSE) -> Open | W168: =VLOOKUP(Q168,Stores!$A:$C,3,FALSE) -> Washington, DC | X168: 8894 | Y168: 0.7308297729
A169: 8680 - Philadelphia, PA - Del Frisco's | C169: 73.1 | D169: 76.2 | E169: 0 | F169: 75.4 | G169: 81.5 | H169: 70.8 | I169: 81.5 | J169: 80.8 | K169: 43.6 | L169: 56.2 | M169: 7.7 | N169: 2 | O169: 88 | P169: 130 | Q169: 8680 | R169: 4 | S169: 2012 | T169: =VLOOKUP(Q169,Stores!$A:$B,2,FALSE) -> DFDE | U169: 2012-04 | V169: =VLOOKUP($Q169,Stores!$A:$D,4,FALSE) -> Open | W169: =VLOOKUP(Q169,Stores!$A:$C,3,FALSE) -> Philadelphia, PA | X169: 11790 | Y169: 1.102629347
A170: 8701 - New York City, NY - Grille | C170: 61.5 | D170: 79.5 | E170: 0 | F170: 66.7 | G170: 69.2 | H170: 66.7 | I170: 76.9 | J170: 66.7 | K170: 47.6 | L170: 61.5 | M170: 10.3 | N170: 1 | O170: 25 | P170: 39 | Q170: 8701 | R170: 4 | S170: 2012 | T170: =VLOOKUP(Q170,Stores!$A:$B,2,FALSE) -> DFG | U170: 2012-04 | V170: =VLOOKUP($Q170,Stores!$A:$D,4,FALSE) -> Open | W170: =VLOOKUP(Q170,Stores!$A:$C,3,FALSE) -> New York City, NY | X170: 13472 | Y170: 0.2894893112
A171: 8702 - Dallas, TX - Grille | C171: 75 | D171: 65 | E171: 0 | F171: 87.5 | G171: 87.5 | H171: 85 | I171: 70 | J171: 75 | K171: 63.6 | L171: 75 | M171: 7.5 | N171: 1 | O171: 26 | P171: 40 | Q171: 8702 | R171: 4 | S171: 2012 | T171: =VLOOKUP(Q171,Stores!$A:$B,2,FALSE) -> DFG | U171: 2012-04 | V171: =VLOOKUP($Q171,Stores!$A:$D,4,FALSE) -> Open | W171: =VLOOKUP(Q171,Stores!$A:$C,3,FALSE) -> Dallas, TX | X171: 8609 | Y171: 0.4646300383
A172: 8703 - Washington, DC - Grille | C172: 77.8 | D172: 72.2 | E172: 0 | F172: 83.3 | G172: 77.8 | H172: 77.8 | I172: 77.8 | J172: 66.7 | K172: 70 | L172: 27.8 | M172: 0 | N172: 0 | O172: 10 | P172: 18 | Q172: 8703 | R172: 4 | S172: 2012 | T172: =VLOOKUP(Q172,Stores!$A:$B,2,FALSE) -> DFG | U172: 2012-04 | V172: =VLOOKUP($Q172,Stores!$A:$D,4,FALSE) -> Open | W172: =VLOOKUP(Q172,Stores!$A:$C,3,FALSE) -> Washington, DC | X172: 6852 | Y172: 0.2626970228
A173: 8704 - Phoenix, AZ - Grille | C173: 70 | D173: 40 | E173: 0 | F173: 80 | G173: 90 | H173: 80 | I173: 30 | J173: 40 | K173: 33.3 | L173: 30 | M173: 10 | N173: 0 | O173: 4 | P173: 10 | Q173: 8704 | R173: 4 | S173: 2012 | T173: =VLOOKUP(Q173,Stores!$A:$B,2,FALSE) -> DFG | U173: 2012-04 | V173: =VLOOKUP($Q173,Stores!$A:$D,4,FALSE) -> Closed | W173: =VLOOKUP(Q173,Stores!$A:$C,3,FALSE) -> Phoenix, AZ | X173: 3243 | Y173: 0.3083564601
A174: 8705 - Palm Beach, FL - Grille | C174: 53.6 | D174: 67.9 | E174: 0 | F174: 75 | G174: 82.1 | H174: 71.4 | I174: 60.7 | J174: 67.9 | K174: 60 | L174: 89.3 | M174: 7.1 | N174: 0 | O174: 19 | P174: 28 | Q174: 8705 | R174: 4 | S174: 2012 | T174: =VLOOKUP(Q174,Stores!$A:$B,2,FALSE) -> DFG | U174: 2012-04 | V174: =VLOOKUP($Q174,Stores!$A:$D,4,FALSE) -> Closed | W174: =VLOOKUP(Q174,Stores!$A:$C,3,FALSE) -> Palm Beach, FL | X174: 2488 | Y174: 1.125401929
A175: 8706 - Atlanta, GA - Grille | C175: 52.8 | D175: 72.2 | E175: 0 | F175: 77.8 | G175: 80.6 | H175: 72.2 | I175: 58.3 | J175: 75 | K175: 59.1 | L175: 83.3 | M175: 11.1 | N175: 2 | O175: 25 | P175: 36 | Q175: 8706 | R175: 4 | S175: 2012 | T175: =VLOOKUP(Q175,Stores!$A:$B,2,FALSE) -> DFG | U175: 2012-04 | V175: =VLOOKUP($Q175,Stores!$A:$D,4,FALSE) -> Open | W175: =VLOOKUP(Q175,Stores!$A:$C,3,FALSE) -> Atlanta, GA | X175: 7917 | Y175: 0.4547176961
A176: 8707 - River Oaks, TX - Grille | C176: 81 | D176: 89.7 | E176: 0 | F176: 87.9 | G176: 91.4 | H176: 86.2 | I176: 81 | J176: 82.8 | K176: 50 | L176: 62.1 | M176: 1.7 | N176: 0 | O176: 40 | P176: 58 | Q176: 8707 | R176: 4 | S176: 2012 | T176: =VLOOKUP(Q176,Stores!$A:$B,2,FALSE) -> DFG | U176: 2012-04 | V176: =VLOOKUP($Q176,Stores!$A:$D,4,FALSE) -> Open | W176: =VLOOKUP(Q176,Stores!$A:$C,3,FALSE) -> Houston, TX | X176: 7355 | Y176: 0.7885791978
A177: 8708 - Chestnut Hill, MA - Grille | C177: 53.8 | D177: 71.8 | E177: 0 | F177: 76.9 | G177: 79.5 | H177: 64.1 | I177: 59 | J177: 61.5 | K177: 50 | L177: 53.8 | M177: 15.4 | N177: 1 | O177: 27 | P177: 39 | Q177: 8708 | R177: 4 | S177: 2012 | T177: =VLOOKUP(Q177,Stores!$A:$B,2,FALSE) -> DFG | U177: 2012-04 | V177: =VLOOKUP($Q177,Stores!$A:$D,4,FALSE) -> Open | W177: =VLOOKUP(Q177,Stores!$A:$C,3,FALSE) -> Chestnut Hill, MA | X177: 6466 | Y177: 0.6031549644
A178: 8709 - Santa Monica, CA - Grille | C178: 80 | D178: 70 | E178: 0 | F178: 70 | G178: 80 | H178: 70 | I178: 90 | J178: 90 | K178: 50 | L178: 30 | M178: 0 | N178: 0 | O178: 5 | P178: 10 | Q178: 8709 | R178: 4 | S178: 2012 | T178: =VLOOKUP(Q178,Stores!$A:$B,2,FALSE) -> DFG | U178: 2012-04 | V178: =VLOOKUP($Q178,Stores!$A:$D,4,FALSE) -> Open | W178: =VLOOKUP(Q178,Stores!$A:$C,3,FALSE) -> Santa Monica, CA | X178: 14383 | Y178: 0.06952652437
A179: 8710 - Fort Worth, TX - Grille | C179: 80 | D179: 85.3 | E179: 0 | F179: 84 | G179: 92 | H179: 82.7 | I179: 74.7 | J179: 88 | K179: 63.2 | L179: 66.7 | M179: 2.7 | N179: 0 | O179: 46 | P179: 75 | Q179: 8710 | R179: 4 | S179: 2012 | T179: =VLOOKUP(Q179,Stores!$A:$B,2,FALSE) -> DFG | U179: 2012-04 | V179: =VLOOKUP($Q179,Stores!$A:$D,4,FALSE) -> Open | W179: =VLOOKUP(Q179,Stores!$A:$C,3,FALSE) -> Fort Worth, TX | X179: 12618 | Y179: 0.5943889681
A180: 8712 - Southlake, TX - Grille | C180: 63.6 | D180: 74 | E180: 0 | F180: 76.6 | G180: 76.6 | H180: 75.3 | I180: 68.8 | J180: 72.7 | K180: 41.7 | L180: 84.4 | M180: 13 | N180: 3 | O180: 60 | P180: 77 | Q180: 8712 | R180: 4 | S180: 2012 | T180: =VLOOKUP(Q180,Stores!$A:$B,2,FALSE) -> DFG | U180: 2012-04 | V180: =VLOOKUP($Q180,Stores!$A:$D,4,FALSE) -> Open | W180: =VLOOKUP(Q180,Stores!$A:$C,3,FALSE) -> Southlake, TX | X180: 12624 | Y180: 0.6099493029
A181: 8713 - Burlington, MA - Grille | B181: 41794 | C181: 60 | D181: 76.7 | E181: 0 | F181: 73.3 | G181: 83.3 | H181: 60 | I181: 63.3 | J181: 50 | K181: 33.3 | L181: 36.7 | M181: 3.3 | N181: 0 | O181: 16 | P181: 30 | Q181: 8713 | R181: 4 | S181: 2012 | T181: =VLOOKUP(Q181,Stores!$A:$B,2,FALSE) -> DFG | U181: 2012-04 | V181: =VLOOKUP($Q181,Stores!$A:$D,4,FALSE) -> Open | W181: =VLOOKUP(Q181,Stores!$A:$C,3,FALSE) -> Burlington, MA | X181: 8950 | Y181: 0.3351955307
A182: 8714 - N Bethesda, MD - Grille | B182: 41908 | C182: 62.5 | D182: 68.8 | E182: 0 | F182: 75 | G182: 87.5 | H182: 75 | I182: 56.3 | J182: 62.5 | K182: 50 | L182: 75 | M182: 6.3 | N182: 1 | O182: 16 | P182: 16 | Q182: 8714 | R182: 4 | S182: 2012 | T182: =VLOOKUP(Q182,Stores!$A:$B,2,FALSE) -> DFG | U182: 2012-04 | V182: =VLOOKUP($Q182,Stores!$A:$D,4,FALSE) -> Open | W182: =VLOOKUP(Q182,Stores!$A:$C,3,FALSE) -> N. Bethesda, MD | X182: 6338 | Y182: 0.2524455664
A183: 8715 - Irvine, CA - Grille | C183: 91.3 | D183: 87 | E183: 0 | F183: 91.3 | G183: 95.7 | H183: 87 | I183: 91.3 | J183: 87 | K183: 69.2 | L183: 56.5 | M183: 4.3 | N183: 0 | O183: 17 | P183: 23 | Q183: 8715 | R183: 4 | S183: 2012 | T183: =VLOOKUP(Q183,Stores!$A:$B,2,FALSE) -> DFG | U183: 2012-04 | V183: =VLOOKUP($Q183,Stores!$A:$D,4,FALSE) -> Open | W183: =VLOOKUP(Q183,Stores!$A:$C,3,FALSE) -> Irvine, CA | X183: 4240 | Y183: 0.5424528302
A184: 8716 - Tampa, FL - Grille | C184: 65.7 | D184: 71.4 | E184: 0 | F184: 82.9 | G184: 85.7 | H184: 71.4 | I184: 74.3 | J184: 74.3 | K184: 35.3 | L184: 51.4 | M184: 17.1 | N184: 0 | O184: 27 | P184: 35 | Q184: 8716 | R184: 4 | S184: 2012 | T184: =VLOOKUP(Q184,Stores!$A:$B,2,FALSE) -> DFG | U184: 2012-04 | V184: =VLOOKUP($Q184,Stores!$A:$D,4,FALSE) -> Open | W184: =VLOOKUP(Q184,Stores!$A:$C,3,FALSE) -> Tampa, FL | X184: 8460 | Y184: 0.4137115839
A185: 8717 - Pasadena, CA - Grille | B185: 41992 | C185: 68.6 | D185: 71.4 | E185: 0 | F185: 82.9 | G185: 94.3 | H185: 77.1 | I185: 62.9 | J185: 77.1 | K185: 66.7 | L185: 71.4 | M185: 8.6 | N185: 0 | O185: 25 | P185: 35 | Q185: 8717 | R185: 4 | S185: 2012 | T185: =VLOOKUP(Q185,Stores!$A:$B,2,FALSE) -> DFG | U185: 2012-04 | V185: =VLOOKUP($Q185,Stores!$A:$D,4,FALSE) -> Open | W185: =VLOOKUP(Q185,Stores!$A:$C,3,FALSE) -> Pasadena, CA | X185: 3778 | Y185: 0.9264160932
A186: 8501 - Austin, TX - Sullivan's | C186: 85 | D186: 90 | E186: 0 | F186: 90 | G186: 90 | H186: 85 | I186: 85 | J186: 85 | K186: 75 | L186: 65 | M186: 5 | N186: 0 | O186: 16 | P186: 20 | Q186: 8501 | R186: 5 | S186: 2012 | T186: =VLOOKUP(Q186,Stores!$A:$B,2,FALSE) -> SULL | U186: 2012-05 | V186: =VLOOKUP($Q186,Stores!$A:$D,4,FALSE) -> Open | W186: =VLOOKUP(Q186,Stores!$A:$C,3,FALSE) -> Austin, TX | X186: 6249 | Y186: 0.3200512082
A187: 8502 - Indianapolis, IN - Sullivan's | C187: 64.5 | D187: 67.7 | E187: 0 | F187: 67.7 | G187: 72.6 | H187: 67.7 | I187: 67.7 | J187: 56.5 | K187: 53.2 | L187: 79 | M187: 16.1 | N187: 0 | O187: 48 | P187: 62 | Q187: 8502 | R187: 5 | S187: 2012 | T187: =VLOOKUP(Q187,Stores!$A:$B,2,FALSE) -> SULL | U187: 2012-05 | V187: =VLOOKUP($Q187,Stores!$A:$D,4,FALSE) -> Open | W187: =VLOOKUP(Q187,Stores!$A:$C,3,FALSE) -> Indianapolis, IN | X187: 7755 | Y187: 0.7994842037
A188: 8503 - Denver, CO - Sullivan's | C188: 81 | D188: 81 | E188: 0 | F188: 76.2 | G188: 85.7 | H188: 81 | I188: 81 | J188: 71.4 | K188: 76.2 | L188: 81 | M188: 4.8 | N188: 0 | O188: 17 | P188: 21 | Q188: 8503 | R188: 5 | S188: 2012 | T188: =VLOOKUP(Q188,Stores!$A:$B,2,FALSE) -> SULL | U188: 2012-05 | V188: =VLOOKUP($Q188,Stores!$A:$D,4,FALSE) -> Closed | W188: =VLOOKUP(Q188,Stores!$A:$C,3,FALSE) -> Denver, CO | X188: 2655 | Y188: 0.790960452
A189: 8504 - Houston, TX - Sullivan's | C189: 78.3 | D189: 76.7 | E189: 0 | F189: 81.7 | G189: 86.7 | H189: 73.3 | I189: 78.3 | J189: 76.7 | K189: 65 | L189: 75 | M189: 6.7 | N189: 1 | O189: 47 | P189: 60 | Q189: 8504 | R189: 5 | S189: 2012 | T189: =VLOOKUP(Q189,Stores!$A:$B,2,FALSE) -> SULL | U189: 2012-05 | V189: =VLOOKUP($Q189,Stores!$A:$D,4,FALSE) -> Closed | W189: =VLOOKUP(Q189,Stores!$A:$C,3,FALSE) -> Houston, TX | X189: 5586 | Y189: 1.074113856
A190: 8510 - Wilmington, DE - Sullivan's | C190: 70.3 | D190: 76.6 | E190: 0 | F190: 75 | G190: 85.9 | H190: 68.8 | I190: 78.1 | J190: 67.2 | K190: 40.6 | L190: 71.9 | M190: 4.7 | N190: 0 | O190: 47 | P190: 64 | Q190: 8510 | R190: 5 | S190: 2012 | T190: =VLOOKUP(Q190,Stores!$A:$B,2,FALSE) -> SULL | U190: 2012-05 | V190: =VLOOKUP($Q190,Stores!$A:$D,4,FALSE) -> Open | W190: =VLOOKUP(Q190,Stores!$A:$C,3,FALSE) -> Wilmington, DE | X190: 5919 | Y190: 1.081263727
A191: 8522 - King of Prussia, PA - Sullivan's | C191: 68.4 | D191: 75.4 | E191: 0 | F191: 77.2 | G191: 82.5 | H191: 68.4 | I191: 59.6 | J191: 59.6 | K191: 45.6 | L191: 82.5 | M191: 15.8 | N191: 2 | O191: 42 | P191: 57 | Q191: 8522 | R191: 5 | S191: 2012 | T191: =VLOOKUP(Q191,Stores!$A:$B,2,FALSE) -> SULL | U191: 2012-05 | V191: =VLOOKUP($Q191,Stores!$A:$D,4,FALSE) -> Open | W191: =VLOOKUP(Q191,Stores!$A:$C,3,FALSE) -> King of Prussia, PA | X191: 7490 | Y191: 0.7610146862
A192: 8525 - Tucson, AZ - Sullivan's | C192: 83.7 | D192: 85.7 | E192: 0 | F192: 87.8 | G192: 93.9 | H192: 77.6 | I192: 89.8 | J192: 83.7 | K192: 71.4 | L192: 67.3 | M192: 0 | N192: 0 | O192: 37 | P192: 49 | Q192: 8525 | R192: 5 | S192: 2012 | T192: =VLOOKUP(Q192,Stores!$A:$B,2,FALSE) -> SULL | U192: 2012-05 | V192: =VLOOKUP($Q192,Stores!$A:$D,4,FALSE) -> Open | W192: =VLOOKUP(Q192,Stores!$A:$C,3,FALSE) -> Tucson, AZ | X192: 4565 | Y192: 1.073384447
A193: 8532 - Omaha, NE - Sullivan's | C193: 83.3 | D193: 83.3 | E193: 0 | F193: 90 | G193: 100 | H193: 90 | I193: 86.7 | J193: 100 | K193: 63.3 | L193: 56.7 | M193: 3.3 | N193: 0 | O193: 21 | P193: 30 | Q193: 8532 | R193: 5 | S193: 2012 | T193: =VLOOKUP(Q193,Stores!$A:$B,2,FALSE) -> SULL | U193: 2012-05 | V193: =VLOOKUP($Q193,Stores!$A:$D,4,FALSE) -> Open | W193: =VLOOKUP(Q193,Stores!$A:$C,3,FALSE) -> Omaha, NE | X193: 5266 | Y193: 0.5696923661
A194: 8535 - Baltimore, MD - Sullivan's | C194: 70 | D194: 80 | E194: 0 | F194: 70 | G194: 80 | H194: 60 | I194: 70 | J194: 60 | K194: 40 | L194: 80 | M194: 10 | N194: 0 | O194: 6 | P194: 10 | Q194: 8535 | R194: 5 | S194: 2012 | T194: =VLOOKUP(Q194,Stores!$A:$B,2,FALSE) -> SULL | U194: 2012-05 | V194: =VLOOKUP($Q194,Stores!$A:$D,4,FALSE) -> Open | W194: =VLOOKUP(Q194,Stores!$A:$C,3,FALSE) -> Baltimore, MD | X194: 4529 | Y194: 0.2207992934
A195: 8536 - Leawood, KS - Sullivan's | C195: 69.2 | D195: 69.2 | E195: 0 | F195: 84.6 | G195: 96.2 | H195: 76.9 | I195: 65.4 | J195: 82.7 | K195: 51.9 | L195: 84.6 | M195: 1.9 | N195: 0 | O195: 37 | P195: 52 | Q195: =MID(A195,1,4)*1 -> 8536 | R195: 5 | S195: 2012 | T195: =VLOOKUP(Q195,Stores!$A:$B,2,FALSE) -> SULL | U195: =S195&"-"&REPT("0",2-LEN(R195))&R195 -> 2012-05 | V195: =VLOOKUP($Q195,Stores!$A:$D,4,FALSE) -> Open | W195: =VLOOKUP(Q195,Stores!$A:$C,3,FALSE) -> Leawood, KS | X195: 5465 | Y195: =P195/(X195/100) -> 0.9515096066
A196: 8541 - Chicago, IL - Sullivan's | C196: 88 | D196: 88 | E196: 0 | F196: 88 | G196: 88 | H196: 80 | I196: 88 | J196: 72 | K196: 72 | L196: 84 | M196: 8 | N196: 0 | O196: 20 | P196: 25 | Q196: 8541 | R196: 5 | S196: 2012 | T196: =VLOOKUP(Q196,Stores!$A:$B,2,FALSE) -> SULL | U196: 2012-05 | V196: =VLOOKUP($Q196,Stores!$A:$D,4,FALSE) -> Open | W196: =VLOOKUP(Q196,Stores!$A:$C,3,FALSE) -> Chicago, IL | X196: 3639 | Y196: 0.6870019236
A197: 8542 - Naperville, IL - Sullivan's | C197: 71.6 | D197: 73.1 | E197: 0 | F197: 83.6 | G197: 86.6 | H197: 82.1 | I197: 77.6 | J197: 77.6 | K197: 49.3 | L197: 89.6 | M197: 9 | N197: 0 | O197: 48 | P197: 67 | Q197: 8542 | R197: 5 | S197: 2012 | T197: =VLOOKUP(Q197,Stores!$A:$B,2,FALSE) -> SULL | U197: 2012-05 | V197: =VLOOKUP($Q197,Stores!$A:$D,4,FALSE) -> Open | W197: =VLOOKUP(Q197,Stores!$A:$C,3,FALSE) -> Naperville, IL | X197: 6833 | Y197: 0.9805356359
A198: 8543 - Lincolnshire, IL - Sullivan's | C198: 56 | D198: 64 | E198: 0 | F198: 84 | G198: 92 | H198: 76 | I198: 64 | J198: 60 | K198: 40 | L198: 88 | M198: 0 | N198: 0 | O198: 18 | P198: 25 | Q198: 8543 | R198: 5 | S198: 2012 | T198: =VLOOKUP(Q198,Stores!$A:$B,2,FALSE) -> SULL | U198: 2012-05 | V198: =VLOOKUP($Q198,Stores!$A:$D,4,FALSE) -> Open | W198: =VLOOKUP(Q198,Stores!$A:$C,3,FALSE) -> Lincolnshire, IL | X198: 4247 | Y198: 0.5886508123
A199: 8551 - Baton Rouge, LA - Sullivan's | C199: 83.3 | D199: 86.7 | E199: 0 | F199: 88.3 | G199: 95 | H199: 78.3 | I199: 86.7 | J199: 85 | K199: 75 | L199: 90 | M199: 1.7 | N199: 1 | O199: 42 | P199: 60 | Q199: 8551 | R199: 5 | S199: 2012 | T199: =VLOOKUP(Q199,Stores!$A:$B,2,FALSE) -> SULL | U199: 2012-05 | V199: =VLOOKUP($Q199,Stores!$A:$D,4,FALSE) -> Open | W199: =VLOOKUP(Q199,Stores!$A:$C,3,FALSE) -> Baton Rouge, LA | X199: 6150 | Y199: 0.9756097561
A200: 8561 - Raleigh, NC - Sullivan's | C200: 60.4 | D200: 70.8 | E200: 0 | F200: 68.8 | G200: 75 | H200: 62.5 | I200: 68.8 | J200: 58.3 | K200: 43.8 | L200: 72.9 | M200: 10.4 | N200: 2 | O200: 33 | P200: 48 | Q200: 8561 | R200: 5 | S200: 2012 | T200: =VLOOKUP(Q200,Stores!$A:$B,2,FALSE) -> SULL | U200: 2012-05 | V200: =VLOOKUP($Q200,Stores!$A:$D,4,FALSE) -> Open | W200: =VLOOKUP(Q200,Stores!$A:$C,3,FALSE) -> Raleigh, NC | X200: 6764 | Y200: 0.7096392667
... 1562 more rows

Sheet Stores
A1: Store # | B1: Brand | C1: Chart label | D1: Status
A2: 8501 | B2: SULL | C2: Austin, TX | D2: Open
A3: 8502 | B3: SULL | C3: Indianapolis, IN | D3: Open
A4: 8503 | B4: SULL | C4: Denver, CO | D4: Closed
A5: 8504 | B5: SULL | C5: Houston, TX | D5: Closed
A6: 8510 | B6: SULL | C6: Wilmington, DE | D6: Open
A7: 8522 | B7: SULL | C7: King of Prussia, PA | D7: Open
A8: 8525 | B8: SULL | C8: Tucson, AZ | D8: Open
A9: 8532 | B9: SULL | C9: Omaha, NE | D9: Open
A10: 8535 | B10: SULL | C10: Baltimore, MD | D10: Open
A11: 8536 | B11: SULL | C11: Leawood, KS | D11: Open
A12: 8541 | B12: SULL | C12: Chicago, IL | D12: Open
A13: 8542 | B13: SULL | C13: Naperville, IL | D13: Open
A14: 8543 | B14: SULL | C14: Lincolnshire, IL | D14: Open
A15: 8551 | B15: SULL | C15: Baton Rouge, LA | D15: Open
A16: 8561 | B16: SULL | C16: Raleigh, NC | D16: Open
A17: 8562 | B17: SULL | C17: Charlotte, NC | D17: Open
A18: 8570 | B18: SULL | C18: Palm Desert, CA | D18: Open
A19: 8591 | B19: SULL | C19: Anchorage, AK | D19: Open
A20: 8592 | B20: SULL | C20: Seattle, WA | D20: Closed
A21: 8601 | B21: DFDE | C21: Dallas, TX | D21: Closed
A22: 8602 | B22: DFDE | C22: Fort Worth, TX | D22: Open
A23: 8603 | B23: DFDE | C23: Denver, CO | D23: Open
A24: 8604 | B24: DFDE | C24: Charlotte, NC | D24: Open
A25: 8605 | B25: DFDE | C25: Houston, TX | D25: Open
A26: 8610 | B26: DFDE | C26: Dallas, TX | D26: Open
A27: 8611 | B27: DFDE | C27: Plano, TX | D27: Open
A28: 8615 | B28: DFDE | C28: Orlando, FL | D28: Open
A29: 8620 | B29: DFDE | C29: New York City, NY | D29: Open
A30: 8635 | B30: DFDE | C30: Boston, MA | D30: Open
A31: 8640 | B31: DFDE | C31: Las Vegas, NV | D31: Open
A32: 8650 | B32: DFDE | C32: Chicago, IL | D32: Open
A33: 8655 | B33: DFDE | C33: Washington, DC | D33: Open
A34: 8680 | B34: DFDE | C34: Philadelphia, PA | D34: Open
A35: 8701 | B35: DFG | C35: New York City, NY | D35: Open
A36: 8702 | B36: DFG | C36: Dallas, TX | D36: Open
A37: 8703 | B37: DFG | C37: Washington, DC | D37: Open
A38: 8704 | B38: DFG | C38: Phoenix, AZ | D38: Closed
A39: 8705 | B39: DFG | C39: Palm Beach, FL | D39: Closed
A40: 8706 | B40: DFG | C40: Atlanta, GA | D40: Open
A41: 8707 | B41: DFG | C41: Houston, TX | D41: Open
A42: 8708 | B42: DFG | C42: Chestnut Hill, MA | D42: Open
A43: 8709 | B43: DFG | C43: Santa Monica, CA | D43: Open
A44: 8710 | B44: DFG | C44: Fort Worth, TX | D44: Open
A45: 8711 | B45: DFG | C45: Cherry Creek, CO | D45: Open
A46: 8712 | B46: DFG | C46: Southlake, TX | D46: Open
A47: 8713 | B47: DFG | C47: Burlington, MA | D47: Open
A48: 8714 | B48: DFG | C48: N. Bethesda, MD | D48: Open
A49: 8715 | B49: DFG | C49: Irvine, CA | D49: Open
A50: 8716 | B50: DFG | C50: Tampa, FL | D50: Open
A51: 8717 | B51: DFG | C51: Pasadena, CA | D51: Open
A52: 8718 | B52: DFG | C52: Woodlands, TX | D52: Open
A53: 8720 | B53: DFG | C53: Little Rock, AR | D53: Open
A54: 8721 | B54: DFG | C54: Plano, TX | D54: Open
A55: 8722 | B55: DFG | C55: Stamford, CT | D55: Open
A56: 8723 | B56: DFG | C56: Hoboken, NJ | D56: Open
A57: 8724 | B57: DFG | C57: Huntington, NY | D57: Open
A58: 8725 | B58: DFG | C58: Nashville, TN | D58: Open
A59: 8726 | B59: DFG | C59: Brentwood, TN | D59: Open
A60: 8728 | B60: DFG | C60: Brookfield NYC, NY | D60: Open

Sheet Dates
B1: Start | C1: End
A2: '15 Q1 QTD | B2: 2014-12-31 | C2: 2015-03-24
A3: '15 Q2 QTD | B3: 2015-03-25 | C3: 2015-06-16
A4: '15 Q3 QTD | B4: 2015-06-17 | C4: 2015-09-08
A5: '15 Q4 QTD | B5: 2015-09-09 | C5: 2015-12-29
A6: '16 Q1 QTD | B6: 2015-12-30 | C6: 2016-03-22
A7: '16 Q2 QTD | B7: 2016-03-23 | C7: 2016-06-14
A8: '16 Q3 QTD | B8: 2016-06-15 | C8: 2016-09-06
A9: '16 Q4 QTD | B9: 2016-09-07 | C9: 2016-12-27
A10: '15 Q1 YTD | B10: 2014-12-31 | C10: 2015-03-24
A11: '15 Q2 YTD | B11: 2014-12-31 | C11: 2015-06-16
A12: '15 Q3 YTD | B12: 2014-12-31 | C12: 2015-09-08
A13: '15 Q4 YTD | B13: 2014-12-31 | C13: 2015-12-29
A14: '16 Q1 YTD | B14: 2015-12-30 | C14: 2016-03-22
A15: '16 Q2 YTD | B15: 2015-12-30 | C15: 2016-06-14
A16: '16 Q3 YTD | B16: 2015-12-30 | C16: 2016-09-06
A17: '16 Q4 YTD | B17: 2015-12-30 | C17: 2016-12-27
A18: '15 Q1 TTM | B18: 2014-03-26 | C18: 2015-03-24
A19: '15 Q2 TTM | B19: 2014-06-18 | C19: 2015-06-16
A20: '15 Q3 TTM | B20: 2014-09-10 | C20: 2015-09-08
A21: '15 Q4 TTM | B21: 2014-12-31 | C21: 2015-12-29
A22: '16 Q1 TTM | B22: 2015-03-25 | C22: 2016-03-22
A23: '16 Q2 TTM | B23: 2015-06-17 | C23: 2016-06-14
A24: '16 Q3 TTM | B24: 2015-09-09 | C24: 2016-09-06
A25: '16 Q4 TTM | B25: 2015-12-30 | C25: 2016-12-27
A26: '17 Q1 QTD | B26: 2016-12-28 | C26: 2017-03-21
A27: '17 Q1 YTD | B27: 2016-12-28 | C27: 2017-03-21
A28: '17 Q1 TTM | B28: 2016-03-23 | C28: 2017-03-21
A29: '17 Q2 QTD | B29: 2017-03-22 | C29: 2017-06-13
A30: '17 Q2 YTD | B30: 2016-12-28 | C30: 2017-06-13
A31: '17 Q2 TTM | B31: 2016-06-15 | C31: 2017-06-13
A32: '17 Q3 QTD | B32: 2017-06-14 | C32: 2017-09-05
A33: '17 Q3 YTD | B33: 2016-12-28 | C33: 2017-09-05
A34: '17 Q3 TTM | B34: 2016-09-07 | C34: 2017-09-05
